Workbook

Sheet School Fee Structure (hidden)
B3: School Fee Structure
B4: Class/Div | C4: Fee Amount | D4: Tution Fees | E4: Term Fees | F4: Exam Fees | G4: E-System | H4: Activities Fees
B5: Nursery - A | C5: =SUM(D5:H5) -> 20000 | D5: 12000 | E5: 5000 | F5: 1000 | G5: 1000 | H5: 1000
B6: Nursery - B | C6: 20000 | D6: 12000 | E6: 5000 | F6: 1000 | G6: 1000 | H6: 1000
B7: Nursery - C | C7: 20000 | D7: 12000 | E7: 5000 | F7: 1000 | G7: 1000 | H7: 1000
B8: Nursery - D | C8: 20000 | D8: 12000 | E8: 5000 | F8: 1000 | G8: 1000 | H8: 1000
B9: Nursery - E | C9: 20000 | D9: 12000 | E9: 5000 | F9: 1000 | G9: 1000 | H9: 1000
B10: Junior KG - A | C10: 22000 | D10: 14000 | E10: 5000 | F10: 1000 | G10: 1000 | H10: 1000
B11: Junior KG - B | C11: 22000 | D11: 14000 | E11: 5000 | F11: 1000 | G11: 1000 | H11: 1000
B12: Junior KG - C | C12: 22000 | D12: 14000 | E12: 5000 | F12: 1000 | G12: 1000 | H12: 1000
B13: Junior KG - D | C13: 22000 | D13: 14000 | E13: 5000 | F13: 1000 | G13: 1000 | H13: 1000
B14: Junior KG - E | C14: 22000 | D14: 14000 | E14: 5000 | F14: 1000 | G14: 1000 | H14: 1000
B15: Senior KG - A | C15: 24000 | D15: 16000 | E15: 5000 | F15: 1000 | G15: 1000 | H15: 1000
B16: Senior KG - B | C16: 24000 | D16: 16000 | E16: 5000 | F16: 1000 | G16: 1000 | H16: 1000
B17: Senior KG - C | C17: 24000 | D17: 16000 | E17: 5000 | F17: 1000 | G17: 1000 | H17: 1000
B18: Senior KG - D | C18: 24000 | D18: 16000 | E18: 5000 | F18: 1000 | G18: 1000 | H18: 1000
B19: Senior KG - E | C19: 24000 | D19: 16000 | E19: 5000 | F19: 1000 | G19: 1000 | H19: 1000
B20: 1 - A | C20: 15000 | D20: 8000 | E20: 4000 | F20: 1000 | G20: 1000 | H20: 1000
B21: 1 - B | C21: 15000 | D21: 8000 | E21: 4000 | F21: 1000 | G21: 1000 | H21: 1000
B22: 1 - C | C22: 15000 | D22: 8000 | E22: 4000 | F22: 1000 | G22: 1000 | H22: 1000
B23: 1 - D | C23: 15000 | D23: 8000 | E23: 4000 | F23: 1000 | G23: 1000 | H23: 1000
B24: 1 - E | C24: 15000 | D24: 8000 | E24: 4000 | F24: 1000 | G24: 1000 | H24: 1000
B25: 2 - A | C25: 17000 | D25: 10000 | E25: 4000 | F25: 1000 | G25: 1000 | H25: 1000
B26: 2 - B | C26: 17000 | D26: 10000 | E26: 4000 | F26: 1000 | G26: 1000 | H26: 1000
B27: 2 - C | C27: 17000 | D27: 10000 | E27: 4000 | F27: 1000 | G27: 1000 | H27: 1000
B28: 2 - D | C28: 17000 | D28: 10000 | E28: 4000 | F28: 1000 | G28: 1000 | H28: 1000
B29: 2 - E | C29: 17000 | D29: 10000 | E29: 4000 | F29: 1000 | G29: 1000 | H29: 1000
B30: 3 - A | C30: 18000 | D30: 11000 | E30: 4000 | F30: 1000 | G30: 1000 | H30: 1000
B31: 3 - B | C31: 18000 | D31: 11000 | E31: 4000 | F31: 1000 | G31: 1000 | H31: 1000
B32: 3 - C | C32: 18000 | D32: 11000 | E32: 4000 | F32: 1000 | G32: 1000 | H32: 1000
B33: 3 - D | C33: 18000 | D33: 11000 | E33: 4000 | F33: 1000 | G33: 1000 | H33: 1000
B34: 3 - E | C34: 18000 | D34: 11000 | E34: 4000 | F34: 1000 | G34: 1000 | H34: 1000
B35: 4 - A | C35: 19000 | D35: 12000 | E35: 4000 | F35: 1000 | G35: 1000 | H35: 1000
B36: 4 - B | C36: 19000 | D36: 12000 | E36: 4000 | F36: 1000 | G36: 1000 | H36: 1000
B37: 4 - C | C37: =SUM(D37:H37) -> 19000 | D37: 12000 | E37: 4000 | F37: 1000 | G37: 1000 | H37: 1000
B38: 4 - D | C38: 19000 | D38: 12000 | E38: 4000 | F38: 1000 | G38: 1000 | H38: 1000
B39: 4 - E | C39: 19000 | D39: 12000 | E39: 4000 | F39: 1000 | G39: 1000 | H39: 1000
B40: 5 - A | C40: 20000 | D40: 13000 | E40: 4000 | F40: 1000 | G40: 1000 | H40: 1000
B41: 5 - B | C41: 20000 | D41: 13000 | E41: 4000 | F41: 1000 | G41: 1000 | H41: 1000
B42: 5 - C | C42: 20000 | D42: 13000 | E42: 4000 | F42: 1000 | G42: 1000 | H42: 1000
B43: 5 - D | C43: 20000 | D43: 13000 | E43: 4000 | F43: 1000 | G43: 1000 | H43: 1000
B44: 5 - E | C44: 20000 | D44: 13000 | E44: 4000 | F44: 1000 | G44: 1000 | H44: 1000
B45: 6 - A | C45: 21000 | D45: 14000 | E45: 4000 | F45: 1000 | G45: 1000 | H45: 1000
B46: 6 - B | C46: 21000 | D46: 14000 | E46: 4000 | F46: 1000 | G46: 1000 | H46: 1000
B47: 6 - C | C47: 21000 | D47: 14000 | E47: 4000 | F47: 1000 | G47: 1000 | H47: 1000
B48: 6 - D | C48: 21000 | D48: 14000 | E48: 4000 | F48: 1000 | G48: 1000 | H48: 1000
B49: 6 - E | C49: 21000 | D49: 14000 | E49: 4000 | F49: 1000 | G49: 1000 | H49: 1000
B50: 7 - A | C50: 22000 | D50: 15000 | E50: 4000 | F50: 1000 | G50: 1000 | H50: 1000
B51: 7 - B | C51: 22000 | D51: 15000 | E51: 4000 | F51: 1000 | G51: 1000 | H51: 1000
B52: 7 - C | C52: 22000 | D52: 15000 | E52: 4000 | F52: 1000 | G52: 1000 | H52: 1000
B53: 7 - D | C53: 22000 | D53: 15000 | E53: 4000 | F53: 1000 | G53: 1000 | H53: 1000
B54: 7 - E | C54: 22000 | D54: 15000 | E54: 4000 | F54: 1000 | G54: 1000 | H54: 1000
B55: 8 - A | C55: 10000 | D55: 5000 | E55: 4000 | F55: 1000 | G55: 0 | H55: 0
B56: 8 - B | C56: 10000 | D56: 5000 | E56: 4000 | F56: 1000 | G56: 0 | H56: 0
B57: 8 - C | C57: 10000 | D57: 5000 | E57: 4000 | F57: 1000 | G57: 0 | H57: 0
B58: 8 - D | C58: 10000 | D58: 5000 | E58: 4000 | F58: 1000 | G58: 0 | H58: 0
B59: 8 - E | C59: 10000 | D59: 5000 | E59: 4000 | F59: 1000 | G59: 0 | H59: 0
B60: 9 - A | C60: 9000 | D60: 4000 | E60: 4000 | F60: 1000 | G60: 0 | H60: 0
B61: 9 - B | C61: 9000 | D61: 4000 | E61: 4000 | F61: 1000 | G61: 0 | H61: 0
B62: 9 - C | C62: 9000 | D62: 4000 | E62: 4000 | F62: 1000 | G62: 0 | H62: 0
B63: 9 - D | C63: 9000 | D63: 4000 | E63: 4000 | F63: 1000 | G63: 0 | H63: 0
B64: 9 - E | C64: 9000 | D64: 4000 | E64: 4000 | F64: 1000 | G64: 0 | H64: 0
B65: 10 - A | C65: 9500 | D65: 4500 | E65: 4000 | F65: 1000 | G65: 0 | H65: 0
B66: 10 - B | C66: 9500 | D66: 4500 | E66: 4000 | F66: 1000 | G66: 0 | H66: 0
B67: 10 - C | C67: 9500 | D67: 4500 | E67: 4000 | F67: 1000 | G67: 0 | H67: 0
B68: 10 - D | C68: 9500 | D68: 4500 | E68: 4000 | F68: 1000 | G68: 0 | H68: 0
B69: 10 - E | C69: =SUM(D69:H69) -> 9500 | D69: 4500 | E69: 4000 | F69: 1000 | G69: 0 | H69: 0
B70: 11 - A | C70: 15500 | D70: 10500 | E70: 4000 | F70: 1000 | G70: 0 | H70: 0
B71: 11 - B | C71: 15500 | D71: 10500 | E71: 4000 | F71: 1000 | G71: 0 | H71: 0
B72: 11 - C | C72: 15500 | D72: 10500 | E72: 4000 | F72: 1000 | G72: 0 | H72: 0
B73: 11 - D | C73: 15500 | D73: 10500 | E73: 4000 | F73: 1000 | G73: 0 | H73: 0
B74: 11 - E | C74: 15500 | D74: 10500 | E74: 4000 | F74: 1000 | G74: 0 | H74: 0
B75: 12 - A | C75: 18000 | D75: 13000 | E75: 4000 | F75: 1000 | G75: 0 | H75: 0
B76: 12 - B | C76: 18000 | D76: 13000 | E76: 4000 | F76: 1000 | G76: 0 | H76: 0
B77: 12 - C | C77: 18000 | D77: 13000 | E77: 4000 | F77: 1000 | G77: 0 | H77: 0
B78: 12 - D | C78: 18000 | D78: 13000 | E78: 4000 | F78: 1000 | G78: 0 | H78: 0
B79: 12 - E | C79: 18000 | D79: 13000 | E79: 4000 | F79: 1000 | G79: 0 | H79: 0

Sheet School Fee Collection Sheet
O1: هذة الدفعة الأخيرة بالنسبة لهذا التلميذ
B2: Student Unique ID | C2: Class - Div | D2: Student Name | E2: Tution Fees | F2: Term Fees | G2: Exam Fees | H2: E-System Fees | I2: Activities Fees | J2: Fee Amount | K2: Payment 1 | L2: Payment 2 | M2: Payment 3 | N2: Payment 4 | O2: Payment 5 | P2: Payment 6 | Q2: Payment 7 | R2: Payment 8 | S2: Total Fee Received | T2: Fee Outstanding
B3: AIS001 | C3: Nursery - A | D3: Albert | E3: =VLOOKUP(C3,'School Fee Structure'!$B$5:$H$79,3,FALSE) -> 12000 | F3: =VLOOKUP(C3,'School Fee Structure'!$B$5:$H$79,4,FALSE) -> 5000 | G3: =VLOOKUP(C3,'School Fee Structure'!$B$5:$H$79,5,FALSE) -> 1000 | H3: =VLOOKUP(C3,'School Fee Structure'!$B$5:$H$79,6,FALSE) -> 1000 | I3: =VLOOKUP(C3,'School Fee Structure'!$B$5:$H$79,7,FALSE) -> 1000 | J3: =VLOOKUP(C3,'School Fee Structure'!$B$5:$H$79,2,FALSE) -> 20000 | K3: 5000 | M3: 5000 | S3: =SUM(K3:R3) -> 10000 | T3: =J3-S3 -> 10000
B4: AIS002 | C4: Nursery - A | D4: Benjamin | E4: =VLOOKUP(C4,'School Fee Structure'!$B$5:$H$79,3,FALSE) -> 12000 | F4: =VLOOKUP(C4,'School Fee Structure'!$B$5:$H$79,4,FALSE) -> 5000 | G4: =VLOOKUP(C4,'School Fee Structure'!$B$5:$H$79,5,FALSE) -> 1000 | H4: =VLOOKUP(C4,'School Fee Structure'!$B$5:$H$79,6,FALSE) -> 1000 | I4: =VLOOKUP(C4,'School Fee Structure'!$B$5:$H$79,7,FALSE) -> 1000 | J4: =VLOOKUP(C4,'School Fee Structure'!$B$5:$H$79,2,FALSE) -> 20000 | K4: 2500 | L4: 2500 | M4: 2500 | N4: 2500 | S4: =SUM(K4:R4) -> 10000 | T4: =J4-S4 -> 10000
B5: AIS003 | C5: Nursery - A | D5: Clara | E5: =VLOOKUP(C5,'School Fee Structure'!$B$5:$H$79,3,FALSE) -> 12000 | F5: =VLOOKUP(C5,'School Fee Structure'!$B$5:$H$79,4,FALSE) -> 5000 | G5: =VLOOKUP(C5,'School Fee Structure'!$B$5:$H$79,5,FALSE) -> 1000 | H5: =VLOOKUP(C5,'School Fee Structure'!$B$5:$H$79,6,FALSE) -> 1000 | I5: =VLOOKUP(C5,'School Fee Structure'!$B$5:$H$79,7,FALSE) -> 1000 | J5: =VLOOKUP(C5,'School Fee Structure'!$B$5:$H$79,2,FALSE) -> 20000 | K5: 20000 | L5: 0 | M5: 0 | N5: 0 | S5: 20000 | T5: 0
B6: AIS004 | C6: Nursery - A | D6: Dany | E6: =VLOOKUP(C6,'School Fee Structure'!$B$5:$H$79,3,FALSE) -> 12000 | F6: =VLOOKUP(C6,'School Fee Structure'!$B$5:$H$79,4,FALSE) -> 5000 | G6: =VLOOKUP(C6,'School Fee Structure'!$B$5:$H$79,5,FALSE) -> 1000 | H6: =VLOOKUP(C6,'School Fee Structure'!$B$5:$H$79,6,FALSE) -> 1000 | I6: =VLOOKUP(C6,'School Fee Structure'!$B$5:$H$79,7,FALSE) -> 1000 | J6: =VLOOKUP(C6,'School Fee Structure'!$B$5:$H$79,2,FALSE) -> 20000 | K6: 10000 | L6: 0 | M6: 5000 | N6: 0 | S6: 15000 | T6: 5000
B7: AIS005 | C7: Nursery - A | D7: Emanuel | E7: =VLOOKUP(C7,'School Fee Structure'!$B$5:$H$79,3,FALSE) -> 12000 | F7: =VLOOKUP(C7,'School Fee Structure'!$B$5:$H$79,4,FALSE) -> 5000 | G7: =VLOOKUP(C7,'School Fee Structure'!$B$5:$H$79,5,FALSE) -> 1000 | H7: =VLOOKUP(C7,'School Fee Structure'!$B$5:$H$79,6,FALSE) -> 1000 | I7: =VLOOKUP(C7,'School Fee Structure'!$B$5:$H$79,7,FALSE) -> 1000 | J7: =VLOOKUP(C7,'School Fee Structure'!$B$5:$H$79,2,FALSE) -> 20000 | K7: 15000 | L7: 0 | M7: 0 | N7: 0 | S7: 15000 | T7: 5000
B8: AIS006 | C8: Nursery - A | D8: Fedrick | E8: =VLOOKUP(C8,'School Fee Structure'!$B$5:$H$79,3,FALSE) -> 12000 | F8: =VLOOKUP(C8,'School Fee Structure'!$B$5:$H$79,4,FALSE) -> 5000 | G8: =VLOOKUP(C8,'School Fee Structure'!$B$5:$H$79,5,FALSE) -> 1000 | H8: =VLOOKUP(C8,'School Fee Structure'!$B$5:$H$79,6,FALSE) -> 1000 | I8: =VLOOKUP(C8,'School Fee Structure'!$B$5:$H$79,7,FALSE) -> 1000 | J8: =VLOOKUP(C8,'School Fee Structure'!$B$5:$H$79,2,FALSE) -> 20000 | K8: 5000 | M8: 5000 | S8: 10000 | T8: 10000
B9: AIS007 | C9: Nursery - A | D9: Gavin | E9: =VLOOKUP(C9,'School Fee Structure'!$B$5:$H$79,3,FALSE) -> 12000 | F9: =VLOOKUP(C9,'School Fee Structure'!$B$5:$H$79,4,FALSE) -> 5000 | G9: =VLOOKUP(C9,'School Fee Structure'!$B$5:$H$79,5,FALSE) -> 1000 | H9: =VLOOKUP(C9,'School Fee Structure'!$B$5:$H$79,6,FALSE) -> 1000 | I9: =VLOOKUP(C9,'School Fee Structure'!$B$5:$H$79,7,FALSE) -> 1000 | J9: =VLOOKUP(C9,'School Fee Structure'!$B$5:$H$79,2,FALSE) -> 20000 | K9: 2500 | L9: 2500 | M9: 2500 | N9: 2500 | S9: 10000 | T9: 10000
B10: AIS008 | C10: Nursery - A | D10: Hayden | E10: =VLOOKUP(C10,'School Fee Structure'!$B$5:$H$79,3,FALSE) -> 12000 | F10: =VLOOKUP(C10,'School Fee Structure'!$B$5:$H$79,4,FALSE) -> 5000 | G10: =VLOOKUP(C10,'School Fee Structure'!$B$5:$H$79,5,FALSE) -> 1000 | H10: =VLOOKUP(C10,'School Fee Structure'!$B$5:$H$79,6,FALSE) -> 1000 | I10: =VLOOKUP(C10,'School Fee Structure'!$B$5:$H$79,7,FALSE) -> 1000 | J10: =VLOOKUP(C10,'School Fee Structure'!$B$5:$H$79,2,FALSE) -> 20000 | K10: 20000 | L10: 10 | M10: 20 | N10: 30 | O10: 40 | P10: 50 | Q10: 60 | R10: 70 | S10: 20280 | T10: -280
B11: AIS009 | C11: Nursery - A | D11: Ian | E11: =VLOOKUP(C11,'School Fee Structure'!$B$5:$H$79,3,FALSE) -> 12000 | F11: =VLOOKUP(C11,'School Fee Structure'!$B$5:$H$79,4,FALSE) -> 5000 | G11: =VLOOKUP(C11,'School Fee Structure'!$B$5:$H$79,5,FALSE) -> 1000 | H11: =VLOOKUP(C11,'School Fee Structure'!$B$5:$H$79,6,FALSE) -> 1000 | I11: =VLOOKUP(C11,'School Fee Structure'!$B$5:$H$79,7,FALSE) -> 1000 | J11: =VLOOKUP(C11,'School Fee Structure'!$B$5:$H$79,2,FALSE) -> 20000 | K11: 10000 | L11: 0 | M11: 5000 | N11: 0 | S11: 15000 | T11: 5000
B12: AIS010 | C12: Nursery - A | D12: Jacob | E12: =VLOOKUP(C12,'School Fee Structure'!$B$5:$H$79,3,FALSE) -> 12000 | F12: =VLOOKUP(C12,'School Fee Structure'!$B$5:$H$79,4,FALSE) -> 5000 | G12: =VLOOKUP(C12,'School Fee Structure'!$B$5:$H$79,5,FALSE) -> 1000 | H12: =VLOOKUP(C12,'School Fee Structure'!$B$5:$H$79,6,FALSE) -> 1000 | I12: =VLOOKUP(C12,'School Fee Structure'!$B$5:$H$79,7,FALSE) -> 1000 | J12: =VLOOKUP(C12,'School Fee Structure'!$B$5:$H$79,2,FALSE) -> 20000 | K12: 15000 | L12: 0 | M12: 0 | N12: 0 | S12: 15000 | T12: 5000
B13: AIS011 | C13: Nursery - A | D13: Katy | E13: =VLOOKUP(C13,'School Fee Structure'!$B$5:$H$79,3,FALSE) -> 12000 | F13: =VLOOKUP(C13,'School Fee Structure'!$B$5:$H$79,4,FALSE) -> 5000 | G13: =VLOOKUP(C13,'School Fee Structure'!$B$5:$H$79,5,FALSE) -> 1000 | H13: =VLOOKUP(C13,'School Fee Structure'!$B$5:$H$79,6,FALSE) -> 1000 | I13: =VLOOKUP(C13,'School Fee Structure'!$B$5:$H$79,7,FALSE) -> 1000 | J13: =VLOOKUP(C13,'School Fee Structure'!$B$5:$H$79,2,FALSE) -> 20000 | K13: 5000 | M13: 5000 | S13: 10000 | T13: 10000
B14: AIS012 | C14: Nursery - A | D14: Lorel | E14: =VLOOKUP(C14,'School Fee Structure'!$B$5:$H$79,3,FALSE) -> 12000 | F14: =VLOOKUP(C14,'School Fee Structure'!$B$5:$H$79,4,FALSE) -> 5000 | G14: =VLOOKUP(C14,'School Fee Structure'!$B$5:$H$79,5,FALSE) -> 1000 | H14: =VLOOKUP(C14,'School Fee Structure'!$B$5:$H$79,6,FALSE) -> 1000 | I14: =VLOOKUP(C14,'School Fee Structure'!$B$5:$H$79,7,FALSE) -> 1000 | J14: =VLOOKUP(C14,'School Fee Structure'!$B$5:$H$79,2,FALSE) -> 20000 | K14: 2500 | L14: 2500 | M14: 2500 | N14: 2500 | S14: 10000 | T14: 10000
B15: AIS013 | C15: Nursery - A | D15: Mona | E15: =VLOOKUP(C15,'School Fee Structure'!$B$5:$H$79,3,FALSE) -> 12000 | F15: =VLOOKUP(C15,'School Fee Structure'!$B$5:$H$79,4,FALSE) -> 5000 | G15: =VLOOKUP(C15,'School Fee Structure'!$B$5:$H$79,5,FALSE) -> 1000 | H15: =VLOOKUP(C15,'School Fee Structure'!$B$5:$H$79,6,FALSE) -> 1000 | I15: =VLOOKUP(C15,'School Fee Structure'!$B$5:$H$79,7,FALSE) -> 1000 | J15: =VLOOKUP(C15,'School Fee Structure'!$B$5:$H$79,2,FALSE) -> 20000 | K15: 20000 | L15: 0 | M15: 0 | N15: 0 | S15: 20000 | T15: 0
B16: AIS014 | C16: Nursery - A | D16: Nancy | E16: =VLOOKUP(C16,'School Fee Structure'!$B$5:$H$79,3,FALSE) -> 12000 | F16: =VLOOKUP(C16,'School Fee Structure'!$B$5:$H$79,4,FALSE) -> 5000 | G16: =VLOOKUP(C16,'School Fee Structure'!$B$5:$H$79,5,FALSE) -> 1000 | H16: =VLOOKUP(C16,'School Fee Structure'!$B$5:$H$79,6,FALSE) -> 1000 | I16: =VLOOKUP(C16,'School Fee Structure'!$B$5:$H$79,7,FALSE) -> 1000 | J16: =VLOOKUP(C16,'School Fee Structure'!$B$5:$H$79,2,FALSE) -> 20000 | K16: 10000 | L16: 0 | M16: 5000 | N16: 0 | S16: 15000 | T16: 5000
B17: AIS015 | C17: Nursery - A | D17: Opera | E17: =VLOOKUP(C17,'School Fee Structure'!$B$5:$H$79,3,FALSE) -> 12000 | F17: =VLOOKUP(C17,'School Fee Structure'!$B$5:$H$79,4,FALSE) -> 5000 | G17: =VLOOKUP(C17,'School Fee Structure'!$B$5:$H$79,5,FALSE) -> 1000 | H17: =VLOOKUP(C17,'School Fee Structure'!$B$5:$H$79,6,FALSE) -> 1000 | I17: =VLOOKUP(C17,'School Fee Structure'!$B$5:$H$79,7,FALSE) -> 1000 | J17: =VLOOKUP(C17,'School Fee Structure'!$B$5:$H$79,2,FALSE) -> 20000 | K17: 15000 | L17: 0 | M17: 0 | N17: 0 | S17: 15000 | T17: 5000
B18: AIS016 | C18: Nursery - A | D18: Queen | E18: =VLOOKUP(C18,'School Fee Structure'!$B$5:$H$79,3,FALSE) -> 12000 | F18: =VLOOKUP(C18,'School Fee Structure'!$B$5:$H$79,4,FALSE) -> 5000 | G18: =VLOOKUP(C18,'School Fee Structure'!$B$5:$H$79,5,FALSE) -> 1000 | H18: =VLOOKUP(C18,'School Fee Structure'!$B$5:$H$79,6,FALSE) -> 1000 | I18: =VLOOKUP(C18,'School Fee Structure'!$B$5:$H$79,7,FALSE) -> 1000 | J18: =VLOOKUP(C18,'School Fee Structure'!$B$5:$H$79,2,FALSE) -> 20000 | K18: 5000 | M18: 5000 | S18: 10000 | T18: 10000
B19: AIS017 | C19: Nursery - A | D19: Patrick | E19: =VLOOKUP(C19,'School Fee Structure'!$B$5:$H$79,3,FALSE) -> 12000 | F19: =VLOOKUP(C19,'School Fee Structure'!$B$5:$H$79,4,FALSE) -> 5000 | G19: =VLOOKUP(C19,'School Fee Structure'!$B$5:$H$79,5,FALSE) -> 1000 | H19: =VLOOKUP(C19,'School Fee Structure'!$B$5:$H$79,6,FALSE) -> 1000 | I19: =VLOOKUP(C19,'School Fee Structure'!$B$5:$H$79,7,FALSE) -> 1000 | J19: =VLOOKUP(C19,'School Fee Structure'!$B$5:$H$79,2,FALSE) -> 20000 | K19: 2500 | L19: 2500 | M19: 2500 | N19: 2500 | S19: 10000 | T19: 10000
B20: AIS018 | C20: Nursery - A | D20: Roger | E20: =VLOOKUP(C20,'School Fee Structure'!$B$5:$H$79,3,FALSE) -> 12000 | F20: =VLOOKUP(C20,'School Fee Structure'!$B$5:$H$79,4,FALSE) -> 5000 | G20: =VLOOKUP(C20,'School Fee Structure'!$B$5:$H$79,5,FALSE) -> 1000 | H20: =VLOOKUP(C20,'School Fee Structure'!$B$5:$H$79,6,FALSE) -> 1000 | I20: =VLOOKUP(C20,'School Fee Structure'!$B$5:$H$79,7,FALSE) -> 1000 | J20: =VLOOKUP(C20,'School Fee Structure'!$B$5:$H$79,2,FALSE) -> 20000 | K20: 20000 | L20: 0 | M20: 0 | N20: 0 | S20: 20000 | T20: 0
B21: AIS019 | C21: Nursery - A | D21: Samuel | E21: =VLOOKUP(C21,'School Fee Structure'!$B$5:$H$79,3,FALSE) -> 12000 | F21: =VLOOKUP(C21,'School Fee Structure'!$B$5:$H$79,4,FALSE) -> 5000 | G21: =VLOOKUP(C21,'School Fee Structure'!$B$5:$H$79,5,FALSE) -> 1000 | H21: =VLOOKUP(C21,'School Fee Structure'!$B$5:$H$79,6,FALSE) -> 1000 | I21: =VLOOKUP(C21,'School Fee Structure'!$B$5:$H$79,7,FALSE) -> 1000 | J21: =VLOOKUP(C21,'School Fee Structure'!$B$5:$H$79,2,FALSE) -> 20000 | K21: 10000 | L21: 0 | M21: 5000 | N21: 0 | S21: 15000 | T21: 5000
B22: AIS020 | C22: Nursery - A | D22: Tina | E22: =VLOOKUP(C22,'School Fee Structure'!$B$5:$H$79,3,FALSE) -> 12000 | F22: =VLOOKUP(C22,'School Fee Structure'!$B$5:$H$79,4,FALSE) -> 5000 | G22: =VLOOKUP(C22,'School Fee Structure'!$B$5:$H$79,5,FALSE) -> 1000 | H22: =VLOOKUP(C22,'School Fee Structure'!$B$5:$H$79,6,FALSE) -> 1000 | I22: =VLOOKUP(C22,'School Fee Structure'!$B$5:$H$79,7,FALSE) -> 1000 | J22: =VLOOKUP(C22,'School Fee Structure'!$B$5:$H$79,2,FALSE) -> 20000 | K22: 15000 | L22: 0 | M22: 0 | N22: 0 | S22: 15000 | T22: 5000
B23: AIS021 | C23: Nursery - A | D23: Usher | E23: =VLOOKUP(C23,'School Fee Structure'!$B$5:$H$79,3,FALSE) -> 12000 | F23: =VLOOKUP(C23,'School Fee Structure'!$B$5:$H$79,4,FALSE) -> 5000 | G23: =VLOOKUP(C23,'School Fee Structure'!$B$5:$H$79,5,FALSE) -> 1000 | H23: =VLOOKUP(C23,'School Fee Structure'!$B$5:$H$79,6,FALSE) -> 1000 | I23: =VLOOKUP(C23,'School Fee Structure'!$B$5:$H$79,7,FALSE) -> 1000 | J23: =VLOOKUP(C23,'School Fee Structure'!$B$5:$H$79,2,FALSE) -> 20000 | K23: 5000 | M23: 5000 | S23: 10000 | T23: 10000
B24: AIS022 | C24: Nursery - A | D24: Vian | E24: =VLOOKUP(C24,'School Fee Structure'!$B$5:$H$79,3,FALSE) -> 12000 | F24: =VLOOKUP(C24,'School Fee Structure'!$B$5:$H$79,4,FALSE) -> 5000 | G24: =VLOOKUP(C24,'School Fee Structure'!$B$5:$H$79,5,FALSE) -> 1000 | H24: =VLOOKUP(C24,'School Fee Structure'!$B$5:$H$79,6,FALSE) -> 1000 | I24: =VLOOKUP(C24,'School Fee Structure'!$B$5:$H$79,7,FALSE) -> 1000 | J24: =VLOOKUP(C24,'School Fee Structure'!$B$5:$H$79,2,FALSE) -> 20000 | K24: 2500 | L24: 2500 | M24: 2500 | N24: 2500 | S24: 10000 | T24: 10000
B25: AIS023 | C25: Nursery - A | D25: Walter | E25: =VLOOKUP(C25,'School Fee Structure'!$B$5:$H$79,3,FALSE) -> 12000 | F25: =VLOOKUP(C25,'School Fee Structure'!$B$5:$H$79,4,FALSE) -> 5000 | G25: =VLOOKUP(C25,'School Fee Structure'!$B$5:$H$79,5,FALSE) -> 1000 | H25: =VLOOKUP(C25,'School Fee Structure'!$B$5:$H$79,6,FALSE) -> 1000 | I25: =VLOOKUP(C25,'School Fee Structure'!$B$5:$H$79,7,FALSE) -> 1000 | J25: =VLOOKUP(C25,'School Fee Structure'!$B$5:$H$79,2,FALSE) -> 20000 | K25: 20000 | L25: 0 | M25: 0 | N25: 0 | S25: 20000 | T25: 0
B26: AIS024 | C26: Nursery - A | D26: Xian | E26: =VLOOKUP(C26,'School Fee Structure'!$B$5:$H$79,3,FALSE) -> 12000 | F26: =VLOOKUP(C26,'School Fee Structure'!$B$5:$H$79,4,FALSE) -> 5000 | G26: =VLOOKUP(C26,'School Fee Structure'!$B$5:$H$79,5,FALSE) -> 1000 | H26: =VLOOKUP(C26,'School Fee Structure'!$B$5:$H$79,6,FALSE) -> 1000 | I26: =VLOOKUP(C26,'School Fee Structure'!$B$5:$H$79,7,FALSE) -> 1000 | J26: =VLOOKUP(C26,'School Fee Structure'!$B$5:$H$79,2,FALSE) -> 20000 | K26: 10000 | L26: 0 | M26: 5000 | N26: 0 | S26: 15000 | T26: 5000
B27: AIS025 | C27: Nursery - A | D27: Yola | E27: =VLOOKUP(C27,'School Fee Structure'!$B$5:$H$79,3,FALSE) -> 12000 | F27: =VLOOKUP(C27,'School Fee Structure'!$B$5:$H$79,4,FALSE) -> 5000 | G27: =VLOOKUP(C27,'School Fee Structure'!$B$5:$H$79,5,FALSE) -> 1000 | H27: =VLOOKUP(C27,'School Fee Structure'!$B$5:$H$79,6,FALSE) -> 1000 | I27: =VLOOKUP(C27,'School Fee Structure'!$B$5:$H$79,7,FALSE) -> 1000 | J27: =VLOOKUP(C27,'School Fee Structure'!$B$5:$H$79,2,FALSE) -> 20000 | K27: 15000 | L27: 0 | M27: 0 | N27: 0 | S27: 15000 | T27: 5000
B28: AIS026 | C28: Nursery - A | D28: Zimmy | E28: =VLOOKUP(C28,'School Fee Structure'!$B$5:$H$79,3,FALSE) -> 12000 | F28: =VLOOKUP(C28,'School Fee Structure'!$B$5:$H$79,4,FALSE) -> 5000 | G28: =VLOOKUP(C28,'School Fee Structure'!$B$5:$H$79,5,FALSE) -> 1000 | H28: =VLOOKUP(C28,'School Fee Structure'!$B$5:$H$79,6,FALSE) -> 1000 | I28: =VLOOKUP(C28,'School Fee Structure'!$B$5:$H$79,7,FALSE) -> 1000 | J28: =VLOOKUP(C28,'School Fee Structure'!$B$5:$H$79,2,FALSE) -> 20000 | K28: 5000 | M28: 5000 | S28: 10000 | T28: 10000
B29: AIS027 | C29: Nursery - A | D29: Aman | E29: =VLOOKUP(C29,'School Fee Structure'!$B$5:$H$79,3,FALSE) -> 12000 | F29: =VLOOKUP(C29,'School Fee Structure'!$B$5:$H$79,4,FALSE) -> 5000 | G29: =VLOOKUP(C29,'School Fee Structure'!$B$5:$H$79,5,FALSE) -> 1000 | H29: =VLOOKUP(C29,'School Fee Structure'!$B$5:$H$79,6,FALSE) -> 1000 | I29: =VLOOKUP(C29,'School Fee Structure'!$B$5:$H$79,7,FALSE) -> 1000 | J29: =VLOOKUP(C29,'School Fee Structure'!$B$5:$H$79,2,FALSE) -> 20000 | K29: 2500 | L29: 2500 | M29: 2500 | N29: 2500 | S29: 10000 | T29: 10000
B30: AIS028 | C30: Nursery - A | D30: Bijal | E30: =VLOOKUP(C30,'School Fee Structure'!$B$5:$H$79,3,FALSE) -> 12000 | F30: =VLOOKUP(C30,'School Fee Structure'!$B$5:$H$79,4,FALSE) -> 5000 | G30: =VLOOKUP(C30,'School Fee Structure'!$B$5:$H$79,5,FALSE) -> 1000 | H30: =VLOOKUP(C30,'School Fee Structure'!$B$5:$H$79,6,FALSE) -> 1000 | I30: =VLOOKUP(C30,'School Fee Structure'!$B$5:$H$79,7,FALSE) -> 1000 | J30: =VLOOKUP(C30,'School Fee Structure'!$B$5:$H$79,2,FALSE) -> 20000 | K30: 20000 | L30: 0 | M30: 0 | N30: 0 | S30: 20000 | T30: 0
B31: AIS029 | C31: Nursery - A | D31: Chandra | E31: =VLOOKUP(C31,'School Fee Structure'!$B$5:$H$79,3,FALSE) -> 12000 | F31: =VLOOKUP(C31,'School Fee Structure'!$B$5:$H$79,4,FALSE) -> 5000 | G31: =VLOOKUP(C31,'School Fee Structure'!$B$5:$H$79,5,FALSE) -> 1000 | H31: =VLOOKUP(C31,'School Fee Structure'!$B$5:$H$79,6,FALSE) -> 1000 | I31: =VLOOKUP(C31,'School Fee Structure'!$B$5:$H$79,7,FALSE) -> 1000 | J31: =VLOOKUP(C31,'School Fee Structure'!$B$5:$H$79,2,FALSE) -> 20000 | K31: 10000 | L31: 0 | M31: 5000 | N31: 0 | S31: 15000 | T31: 5000
B32: AIS030 | C32: Nursery - A | D32: Danish | E32: =VLOOKUP(C32,'School Fee Structure'!$B$5:$H$79,3,FALSE) -> 12000 | F32: =VLOOKUP(C32,'School Fee Structure'!$B$5:$H$79,4,FALSE) -> 5000 | G32: =VLOOKUP(C32,'School Fee Structure'!$B$5:$H$79,5,FALSE) -> 1000 | H32: =VLOOKUP(C32,'School Fee Structure'!$B$5:$H$79,6,FALSE) -> 1000 | I32: =VLOOKUP(C32,'School Fee Structure'!$B$5:$H$79,7,FALSE) -> 1000 | J32: =VLOOKUP(C32,'School Fee Structure'!$B$5:$H$79,2,FALSE) -> 20000 | K32: 15000 | L32: 0 | M32: 0 | N32: 0 | S32: 15000 | T32: 5000
B33: AIS031 | C33: Nursery - A | D33: Emma | E33: =VLOOKUP(C33,'School Fee Structure'!$B$5:$H$79,3,FALSE) -> 12000 | F33: =VLOOKUP(C33,'School Fee Structure'!$B$5:$H$79,4,FALSE) -> 5000 | G33: =VLOOKUP(C33,'School Fee Structure'!$B$5:$H$79,5,FALSE) -> 1000 | H33: =VLOOKUP(C33,'School Fee Structure'!$B$5:$H$79,6,FALSE) -> 1000 | I33: =VLOOKUP(C33,'School Fee Structure'!$B$5:$H$79,7,FALSE) -> 1000 | J33: =VLOOKUP(C33,'School Fee Structure'!$B$5:$H$79,2,FALSE) -> 20000 | K33: 5000 | M33: 5000 | S33: 10000 | T33: 10000
B34: AIS032 | C34: Nursery - A | D34: Firoz | E34: =VLOOKUP(C34,'School Fee Structure'!$B$5:$H$79,3,FALSE) -> 12000 | F34: =VLOOKUP(C34,'School Fee Structure'!$B$5:$H$79,4,FALSE) -> 5000 | G34: =VLOOKUP(C34,'School Fee Structure'!$B$5:$H$79,5,FALSE) -> 1000 | H34: =VLOOKUP(C34,'School Fee Structure'!$B$5:$H$79,6,FALSE) -> 1000 | I34: =VLOOKUP(C34,'School Fee Structure'!$B$5:$H$79,7,FALSE) -> 1000 | J34: =VLOOKUP(C34,'School Fee Structure'!$B$5:$H$79,2,FALSE) -> 20000 | K34: 2500 | L34: 2500 | M34: 2500 | N34: 2500 | S34: 10000 | T34: 10000
B35: AIS033 | C35: Nursery - A | D35: Gitesh | E35: =VLOOKUP(C35,'School Fee Structure'!$B$5:$H$79,3,FALSE) -> 12000 | F35: =VLOOKUP(C35,'School Fee Structure'!$B$5:$H$79,4,FALSE) -> 5000 | G35: =VLOOKUP(C35,'School Fee Structure'!$B$5:$H$79,5,FALSE) -> 1000 | H35: =VLOOKUP(C35,'School Fee Structure'!$B$5:$H$79,6,FALSE) -> 1000 | I35: =VLOOKUP(C35,'School Fee Structure'!$B$5:$H$79,7,FALSE) -> 1000 | J35: =VLOOKUP(C35,'School Fee Structure'!$B$5:$H$79,2,FALSE) -> 20000 | K35: 20000 | L35: 0 | M35: 0 | N35: 0 | S35: 20000 | T35: 0
B36: AIS034 | C36: Nursery - A | D36: Hitesh | E36: =VLOOKUP(C36,'School Fee Structure'!$B$5:$H$79,3,FALSE) -> 12000 | F36: =VLOOKUP(C36,'School Fee Structure'!$B$5:$H$79,4,FALSE) -> 5000 | G36: =VLOOKUP(C36,'School Fee Structure'!$B$5:$H$79,5,FALSE) -> 1000 | H36: =VLOOKUP(C36,'School Fee Structure'!$B$5:$H$79,6,FALSE) -> 1000 | I36: =VLOOKUP(C36,'School Fee Structure'!$B$5:$H$79,7,FALSE) -> 1000 | J36: =VLOOKUP(C36,'School Fee Structure'!$B$5:$H$79,2,FALSE) -> 20000 | K36: 10000 | L36: 0 | M36: 5000 | N36: 0 | S36: 15000 | T36: 5000
B37: AIS035 | C37: Nursery - A | D37: Ismail | E37: =VLOOKUP(C37,'School Fee Structure'!$B$5:$H$79,3,FALSE) -> 12000 | F37: =VLOOKUP(C37,'School Fee Structure'!$B$5:$H$79,4,FALSE) -> 5000 | G37: =VLOOKUP(C37,'School Fee Structure'!$B$5:$H$79,5,FALSE) -> 1000 | H37: =VLOOKUP(C37,'School Fee Structure'!$B$5:$H$79,6,FALSE) -> 1000 | I37: =VLOOKUP(C37,'School Fee Structure'!$B$5:$H$79,7,FALSE) -> 1000 | J37: =VLOOKUP(C37,'School Fee Structure'!$B$5:$H$79,2,FALSE) -> 20000 | K37: 15000 | L37: 0 | M37: 0 | N37: 0 | S37: 15000 | T37: 5000
B38: AIS036 | C38: Nursery - A | D38: Kalyan | E38: =VLOOKUP(C38,'School Fee Structure'!$B$5:$H$79,3,FALSE) -> 12000 | F38: =VLOOKUP(C38,'School Fee Structure'!$B$5:$H$79,4,FALSE) -> 5000 | G38: =VLOOKUP(C38,'School Fee Structure'!$B$5:$H$79,5,FALSE) -> 1000 | H38: =VLOOKUP(C38,'School Fee Structure'!$B$5:$H$79,6,FALSE) -> 1000 | I38: =VLOOKUP(C38,'School Fee Structure'!$B$5:$H$79,7,FALSE) -> 1000 | J38: =VLOOKUP(C38,'School Fee Structure'!$B$5:$H$79,2,FALSE) -> 20000 | K38: 5000 | M38: 5000 | S38: 10000 | T38: 10000
B39: AIS037 | C39: Nursery - A | D39: Lallan | E39: =VLOOKUP(C39,'School Fee Structure'!$B$5:$H$79,3,FALSE) -> 12000 | F39: =VLOOKUP(C39,'School Fee Structure'!$B$5:$H$79,4,FALSE) -> 5000 | G39: =VLOOKUP(C39,'School Fee Structure'!$B$5:$H$79,5,FALSE) -> 1000 | H39: =VLOOKUP(C39,'School Fee Structure'!$B$5:$H$79,6,FALSE) -> 1000 | I39: =VLOOKUP(C39,'School Fee Structure'!$B$5:$H$79,7,FALSE) -> 1000 | J39: =VLOOKUP(C39,'School Fee Structure'!$B$5:$H$79,2,FALSE) -> 20000 | K39: 2500 | L39: 2500 | M39: 2500 | N39: 2500 | S39: 10000 | T39: 10000
B40: AIS038 | C40: Nursery - A | D40: Minakshi | E40: =VLOOKUP(C40,'School Fee Structure'!$B$5:$H$79,3,FALSE) -> 12000 | F40: =VLOOKUP(C40,'School Fee Structure'!$B$5:$H$79,4,FALSE) -> 5000 | G40: =VLOOKUP(C40,'School Fee Structure'!$B$5:$H$79,5,FALSE) -> 1000 | H40: =VLOOKUP(C40,'School Fee Structure'!$B$5:$H$79,6,FALSE) -> 1000 | I40: =VLOOKUP(C40,'School Fee Structure'!$B$5:$H$79,7,FALSE) -> 1000 | J40: =VLOOKUP(C40,'School Fee Structure'!$B$5:$H$79,2,FALSE) -> 20000 | K40: 20000 | L40: 0 | M40: 0 | N40: 0 | S40: 20000 | T40: 0
B41: AIS039 | C41: Nursery - A | D41: Naitik | E41: =VLOOKUP(C41,'School Fee Structure'!$B$5:$H$79,3,FALSE) -> 12000 | F41: =VLOOKUP(C41,'School Fee Structure'!$B$5:$H$79,4,FALSE) -> 5000 | G41: =VLOOKUP(C41,'School Fee Structure'!$B$5:$H$79,5,FALSE) -> 1000 | H41: =VLOOKUP(C41,'School Fee Structure'!$B$5:$H$79,6,FALSE) -> 1000 | I41: =VLOOKUP(C41,'School Fee Structure'!$B$5:$H$79,7,FALSE) -> 1000 | J41: =VLOOKUP(C41,'School Fee Structure'!$B$5:$H$79,2,FALSE) -> 20000 | K41: 10000 | L41: 0 | M41: 5000 | N41: 0 | S41: 15000 | T41: 5000
B42: AIS040 | C42: Nursery - A | D42: Owais | E42: =VLOOKUP(C42,'School Fee Structure'!$B$5:$H$79,3,FALSE) -> 12000 | F42: =VLOOKUP(C42,'School Fee Structure'!$B$5:$H$79,4,FALSE) -> 5000 | G42: =VLOOKUP(C42,'School Fee Structure'!$B$5:$H$79,5,FALSE) -> 1000 | H42: =VLOOKUP(C42,'School Fee Structure'!$B$5:$H$79,6,FALSE) -> 1000 | I42: =VLOOKUP(C42,'School Fee Structure'!$B$5:$H$79,7,FALSE) -> 1000 | J42: =VLOOKUP(C42,'School Fee Structure'!$B$5:$H$79,2,FALSE) -> 20000 | K42: 15000 | L42: 0 | M42: 0 | N42: 0 | S42: 15000 | T42: 5000
B43: AIS041 | C43: Nursery - A | D43: Pinal | E43: =VLOOKUP(C43,'School Fee Structure'!$B$5:$H$79,3,FALSE) -> 12000 | F43: =VLOOKUP(C43,'School Fee Structure'!$B$5:$H$79,4,FALSE) -> 5000 | G43: =VLOOKUP(C43,'School Fee Structure'!$B$5:$H$79,5,FALSE) -> 1000 | H43: =VLOOKUP(C43,'School Fee Structure'!$B$5:$H$79,6,FALSE) -> 1000 | I43: =VLOOKUP(C43,'School Fee Structure'!$B$5:$H$79,7,FALSE) -> 1000 | J43: =VLOOKUP(C43,'School Fee Structure'!$B$5:$H$79,2,FALSE) -> 20000 | K43: 5000 | M43: 5000 | S43: 10000 | T43: 10000
B44: AIS042 | C44: Nursery - A | D44: Qamar | E44: =VLOOKUP(C44,'School Fee Structure'!$B$5:$H$79,3,FALSE) -> 12000 | F44: =VLOOKUP(C44,'School Fee Structure'!$B$5:$H$79,4,FALSE) -> 5000 | G44: =VLOOKUP(C44,'School Fee Structure'!$B$5:$H$79,5,FALSE) -> 1000 | H44: =VLOOKUP(C44,'School Fee Structure'!$B$5:$H$79,6,FALSE) -> 1000 | I44: =VLOOKUP(C44,'School Fee Structure'!$B$5:$H$79,7,FALSE) -> 1000 | J44: =VLOOKUP(C44,'School Fee Structure'!$B$5:$H$79,2,FALSE) -> 20000 | K44: 2500 | L44: 2500 | M44: 2500 | N44: 2500 | S44: 10000 | T44: 10000
B45: AIS043 | C45: Nursery - A | D45: Rahim | E45: =VLOOKUP(C45,'School Fee Structure'!$B$5:$H$79,3,FALSE) -> 12000 | F45: =VLOOKUP(C45,'School Fee Structure'!$B$5:$H$79,4,FALSE) -> 5000 | G45: =VLOOKUP(C45,'School Fee Structure'!$B$5:$H$79,5,FALSE) -> 1000 | H45: =VLOOKUP(C45,'School Fee Structure'!$B$5:$H$79,6,FALSE) -> 1000 | I45: =VLOOKUP(C45,'School Fee Structure'!$B$5:$H$79,7,FALSE) -> 1000 | J45: =VLOOKUP(C45,'School Fee Structure'!$B$5:$H$79,2,FALSE) -> 20000 | K45: 20000 | L45: 0 | M45: 0 | N45: 0 | S45: 20000 | T45: 0
B46: AIS044 | C46: Nursery - A | D46: Sunder | E46: =VLOOKUP(C46,'School Fee Structure'!$B$5:$H$79,3,FALSE) -> 12000 | F46: =VLOOKUP(C46,'School Fee Structure'!$B$5:$H$79,4,FALSE) -> 5000 | G46: =VLOOKUP(C46,'School Fee Structure'!$B$5:$H$79,5,FALSE) -> 1000 | H46: =VLOOKUP(C46,'School Fee Structure'!$B$5:$H$79,6,FALSE) -> 1000 | I46: =VLOOKUP(C46,'School Fee Structure'!$B$5:$H$79,7,FALSE) -> 1000 | J46: =VLOOKUP(C46,'School Fee Structure'!$B$5:$H$79,2,FALSE) -> 20000 | K46: 10000 | L46: 0 | M46: 5000 | N46: 0 | S46: 15000 | T46: 5000
B47: AIS045 | C47: Nursery - A | D47: Tahir | E47: =VLOOKUP(C47,'School Fee Structure'!$B$5:$H$79,3,FALSE) -> 12000 | F47: =VLOOKUP(C47,'School Fee Structure'!$B$5:$H$79,4,FALSE) -> 5000 | G47: =VLOOKUP(C47,'School Fee Structure'!$B$5:$H$79,5,FALSE) -> 1000 | H47: =VLOOKUP(C47,'School Fee Structure'!$B$5:$H$79,6,FALSE) -> 1000 | I47: =VLOOKUP(C47,'School Fee Structure'!$B$5:$H$79,7,FALSE) -> 1000 | J47: =VLOOKUP(C47,'School Fee Structure'!$B$5:$H$79,2,FALSE) -> 20000 | K47: 15000 | L47: 0 | M47: 0 | N47: 0 | S47: 15000 | T47: 5000
B48: AIS046 | C48: Nursery - A | D48: Umar | E48: =VLOOKUP(C48,'School Fee Structure'!$B$5:$H$79,3,FALSE) -> 12000 | F48: =VLOOKUP(C48,'School Fee Structure'!$B$5:$H$79,4,FALSE) -> 5000 | G48: =VLOOKUP(C48,'School Fee Structure'!$B$5:$H$79,5,FALSE) -> 1000 | H48: =VLOOKUP(C48,'School Fee Structure'!$B$5:$H$79,6,FALSE) -> 1000 | I48: =VLOOKUP(C48,'School Fee Structure'!$B$5:$H$79,7,FALSE) -> 1000 | J48: =VLOOKUP(C48,'School Fee Structure'!$B$5:$H$79,2,FALSE) -> 20000 | K48: 5000 | M48: 5000 | S48: 10000 | T48: 10000
B49: AIS047 | C49: Nursery - A | D49: Vishal | E49: =VLOOKUP(C49,'School Fee Structure'!$B$5:$H$79,3,FALSE) -> 12000 | F49: =VLOOKUP(C49,'School Fee Structure'!$B$5:$H$79,4,FALSE) -> 5000 | G49: =VLOOKUP(C49,'School Fee Structure'!$B$5:$H$79,5,FALSE) -> 1000 | H49: =VLOOKUP(C49,'School Fee Structure'!$B$5:$H$79,6,FALSE) -> 1000 | I49: =VLOOKUP(C49,'School Fee Structure'!$B$5:$H$79,7,FALSE) -> 1000 | J49: =VLOOKUP(C49,'School Fee Structure'!$B$5:$H$79,2,FALSE) -> 20000 | K49: 2500 | L49: 2500 | M49: 2500 | N49: 2500 | S49: 10000 | T49: 10000
B50: AIS048 | C50: Nursery - A | D50: Wafa | E50: =VLOOKUP(C50,'School Fee Structure'!$B$5:$H$79,3,FALSE) -> 12000 | F50: =VLOOKUP(C50,'School Fee Structure'!$B$5:$H$79,4,FALSE) -> 5000 | G50: =VLOOKUP(C50,'School Fee Structure'!$B$5:$H$79,5,FALSE) -> 1000 | H50: =VLOOKUP(C50,'School Fee Structure'!$B$5:$H$79,6,FALSE) -> 1000 | I50: =VLOOKUP(C50,'School Fee Structure'!$B$5:$H$79,7,FALSE) -> 1000 | J50: =VLOOKUP(C50,'School Fee Structure'!$B$5:$H$79,2,FALSE) -> 20000 | K50: 20000 | L50: 0 | M50: 0 | N50: 0 | S50: 20000 | T50: 0
B51: AIS049 | C51: Nursery - A | D51: Xolo | E51: =VLOOKUP(C51,'School Fee Structure'!$B$5:$H$79,3,FALSE) -> 12000 | F51: =VLOOKUP(C51,'School Fee Structure'!$B$5:$H$79,4,FALSE) -> 5000 | G51: =VLOOKUP(C51,'School Fee Structure'!$B$5:$H$79,5,FALSE) -> 1000 | H51: =VLOOKUP(C51,'School Fee Structure'!$B$5:$H$79,6,FALSE) -> 1000 | I51: =VLOOKUP(C51,'School Fee Structure'!$B$5:$H$79,7,FALSE) -> 1000 | J51: =VLOOKUP(C51,'School Fee Structure'!$B$5:$H$79,2,FALSE) -> 20000 | K51: 10000 | L51: 0 | M51: 5000 | N51: 0 | S51: 15000 | T51: 5000
B52: AIS050 | C52: Nursery - A | D52: Zahid | E52: =VLOOKUP(C52,'School Fee Structure'!$B$5:$H$79,3,FALSE) -> 12000 | F52: =VLOOKUP(C52,'School Fee Structure'!$B$5:$H$79,4,FALSE) -> 5000 | G52: =VLOOKUP(C52,'School Fee Structure'!$B$5:$H$79,5,FALSE) -> 1000 | H52: =VLOOKUP(C52,'School Fee Structure'!$B$5:$H$79,6,FALSE) -> 1000 | I52: =VLOOKUP(C52,'School Fee Structure'!$B$5:$H$79,7,FALSE) -> 1000 | J52: =VLOOKUP(C52,'School Fee Structure'!$B$5:$H$79,2,FALSE) -> 20000 | K52: 15000 | L52: 0 | M52: 0 | N52: 0 | S52: 15000 | T52: 5000
B53: AIS051 | C53: Nursery - B | D53: Albert | E53: =VLOOKUP(C53,'School Fee Structure'!$B$5:$H$79,3,FALSE) -> 12000 | F53: =VLOOKUP(C53,'School Fee Structure'!$B$5:$H$79,4,FALSE) -> 5000 | G53: =VLOOKUP(C53,'School Fee Structure'!$B$5:$H$79,5,FALSE) -> 1000 | H53: =VLOOKUP(C53,'School Fee Structure'!$B$5:$H$79,6,FALSE) -> 1000 | I53: =VLOOKUP(C53,'School Fee Structure'!$B$5:$H$79,7,FALSE) -> 1000 | J53: =VLOOKUP(C53,'School Fee Structure'!$B$5:$H$79,2,FALSE) -> 20000 | K53: 5000 | M53: 5000 | S53: 10000 | T53: 10000
B54: AIS052 | C54: Nursery - B | D54: Benjamin | E54: =VLOOKUP(C54,'School Fee Structure'!$B$5:$H$79,3,FALSE) -> 12000 | F54: =VLOOKUP(C54,'School Fee Structure'!$B$5:$H$79,4,FALSE) -> 5000 | G54: =VLOOKUP(C54,'School Fee Structure'!$B$5:$H$79,5,FALSE) -> 1000 | H54: =VLOOKUP(C54,'School Fee Structure'!$B$5:$H$79,6,FALSE) -> 1000 | I54: =VLOOKUP(C54,'School Fee Structure'!$B$5:$H$79,7,FALSE) -> 1000 | J54: =VLOOKUP(C54,'School Fee Structure'!$B$5:$H$79,2,FALSE) -> 20000 | K54: 2500 | L54: 2500 | M54: 2500 | N54: 2500 | S54: 10000 | T54: 10000
B55: AIS053 | C55: Nursery - B | D55: Clara | E55: =VLOOKUP(C55,'School Fee Structure'!$B$5:$H$79,3,FALSE) -> 12000 | F55: =VLOOKUP(C55,'School Fee Structure'!$B$5:$H$79,4,FALSE) -> 5000 | G55: =VLOOKUP(C55,'School Fee Structure'!$B$5:$H$79,5,FALSE) -> 1000 | H55: =VLOOKUP(C55,'School Fee Structure'!$B$5:$H$79,6,FALSE) -> 1000 | I55: =VLOOKUP(C55,'School Fee Structure'!$B$5:$H$79,7,FALSE) -> 1000 | J55: =VLOOKUP(C55,'School Fee Structure'!$B$5:$H$79,2,FALSE) -> 20000 | K55: 20000 | L55: 0 | M55: 0 | N55: 0 | S55: 20000 | T55: 0
B56: AIS054 | C56: Nursery - B | D56: Dany | E56: =VLOOKUP(C56,'School Fee Structure'!$B$5:$H$79,3,FALSE) -> 12000 | F56: =VLOOKUP(C56,'School Fee Structure'!$B$5:$H$79,4,FALSE) -> 5000 | G56: =VLOOKUP(C56,'School Fee Structure'!$B$5:$H$79,5,FALSE) -> 1000 | H56: =VLOOKUP(C56,'School Fee Structure'!$B$5:$H$79,6,FALSE) -> 1000 | I56: =VLOOKUP(C56,'School Fee Structure'!$B$5:$H$79,7,FALSE) -> 1000 | J56: =VLOOKUP(C56,'School Fee Structure'!$B$5:$H$79,2,FALSE) -> 20000 | K56: 10000 | L56: 0 | M56: 5000 | N56: 0 | S56: 15000 | T56: 5000
B57: AIS055 | C57: Nursery - B | D57: Emanuel | E57: =VLOOKUP(C57,'School Fee Structure'!$B$5:$H$79,3,FALSE) -> 12000 | F57: =VLOOKUP(C57,'School Fee Structure'!$B$5:$H$79,4,FALSE) -> 5000 | G57: =VLOOKUP(C57,'School Fee Structure'!$B$5:$H$79,5,FALSE) -> 1000 | H57: =VLOOKUP(C57,'School Fee Structure'!$B$5:$H$79,6,FALSE) -> 1000 | I57: =VLOOKUP(C57,'School Fee Structure'!$B$5:$H$79,7,FALSE) -> 1000 | J57: =VLOOKUP(C57,'School Fee Structure'!$B$5:$H$79,2,FALSE) -> 20000 | K57: 15000 | L57: 0 | M57: 0 | N57: 0 | S57: 15000 | T57: 5000
B58: AIS056 | C58: Nursery - B | D58: Fedrick | E58: =VLOOKUP(C58,'School Fee Structure'!$B$5:$H$79,3,FALSE) -> 12000 | F58: =VLOOKUP(C58,'School Fee Structure'!$B$5:$H$79,4,FALSE) -> 5000 | G58: =VLOOKUP(C58,'School Fee Structure'!$B$5:$H$79,5,FALSE) -> 1000 | H58: =VLOOKUP(C58,'School Fee Structure'!$B$5:$H$79,6,FALSE) -> 1000 | I58: =VLOOKUP(C58,'School Fee Structure'!$B$5:$H$79,7,FALSE) -> 1000 | J58: =VLOOKUP(C58,'School Fee Structure'!$B$5:$H$79,2,FALSE) -> 20000 | K58: 5000 | M58: 5000 | S58: 10000 | T58: 10000
B59: AIS057 | C59: Nursery - B | D59: Gavin | E59: =VLOOKUP(C59,'School Fee Structure'!$B$5:$H$79,3,FALSE) -> 12000 | F59: =VLOOKUP(C59,'School Fee Structure'!$B$5:$H$79,4,FALSE) -> 5000 | G59: =VLOOKUP(C59,'School Fee Structure'!$B$5:$H$79,5,FALSE) -> 1000 | H59: =VLOOKUP(C59,'School Fee Structure'!$B$5:$H$79,6,FALSE) -> 1000 | I59: =VLOOKUP(C59,'School Fee Structure'!$B$5:$H$79,7,FALSE) -> 1000 | J59: =VLOOKUP(C59,'School Fee Structure'!$B$5:$H$79,2,FALSE) -> 20000 | K59: 2500 | L59: 2500 | M59: 2500 | N59: 2500 | S59: 10000 | T59: 10000
B60: AIS058 | C60: Nursery - B | D60: Hayden | E60: =VLOOKUP(C60,'School Fee Structure'!$B$5:$H$79,3,FALSE) -> 12000 | F60: =VLOOKUP(C60,'School Fee Structure'!$B$5:$H$79,4,FALSE) -> 5000 | G60: =VLOOKUP(C60,'School Fee Structure'!$B$5:$H$79,5,FALSE) -> 1000 | H60: =VLOOKUP(C60,'School Fee Structure'!$B$5:$H$79,6,FALSE) -> 1000 | I60: =VLOOKUP(C60,'School Fee Structure'!$B$5:$H$79,7,FALSE) -> 1000 | J60: =VLOOKUP(C60,'School Fee Structure'!$B$5:$H$79,2,FALSE) -> 20000 | K60: 20000 | L60: 0 | M60: 0 | N60: 0 | S60: 20000 | T60: 0
B61: AIS059 | C61: Nursery - B | D61: Ian | E61: =VLOOKUP(C61,'School Fee Structure'!$B$5:$H$79,3,FALSE) -> 12000 | F61: =VLOOKUP(C61,'School Fee Structure'!$B$5:$H$79,4,FALSE) -> 5000 | G61: =VLOOKUP(C61,'School Fee Structure'!$B$5:$H$79,5,FALSE) -> 1000 | H61: =VLOOKUP(C61,'School Fee Structure'!$B$5:$H$79,6,FALSE) -> 1000 | I61: =VLOOKUP(C61,'School Fee Structure'!$B$5:$H$79,7,FALSE) -> 1000 | J61: =VLOOKUP(C61,'School Fee Structure'!$B$5:$H$79,2,FALSE) -> 20000 | K61: 10000 | L61: 0 | M61: 5000 | N61: 0 | S61: 15000 | T61: 5000
B62: AIS060 | C62: Nursery - B | D62: Jacob | E62: =VLOOKUP(C62,'School Fee Structure'!$B$5:$H$79,3,FALSE) -> 12000 | F62: =VLOOKUP(C62,'School Fee Structure'!$B$5:$H$79,4,FALSE) -> 5000 | G62: =VLOOKUP(C62,'School Fee Structure'!$B$5:$H$79,5,FALSE) -> 1000 | H62: =VLOOKUP(C62,'School Fee Structure'!$B$5:$H$79,6,FALSE) -> 1000 | I62: =VLOOKUP(C62,'School Fee Structure'!$B$5:$H$79,7,FALSE) -> 1000 | J62: =VLOOKUP(C62,'School Fee Structure'!$B$5:$H$79,2,FALSE) -> 20000 | K62: 15000 | L62: 0 | M62: 0 | N62: 0 | S62: 15000 | T62: 5000
B63: AIS061 | C63: Nursery - B | D63: Katy | E63: =VLOOKUP(C63,'School Fee Structure'!$B$5:$H$79,3,FALSE) -> 12000 | F63: =VLOOKUP(C63,'School Fee Structure'!$B$5:$H$79,4,FALSE) -> 5000 | G63: =VLOOKUP(C63,'School Fee Structure'!$B$5:$H$79,5,FALSE) -> 1000 | H63: =VLOOKUP(C63,'School Fee Structure'!$B$5:$H$79,6,FALSE) -> 1000 | I63: =VLOOKUP(C63,'School Fee Structure'!$B$5:$H$79,7,FALSE) -> 1000 | J63: =VLOOKUP(C63,'School Fee Structure'!$B$5:$H$79,2,FALSE) -> 20000 | K63: 5000 | M63: 5000 | S63: 10000 | T63: 10000
B64: AIS062 | C64: Nursery - B | D64: Lorel | E64: =VLOOKUP(C64,'School Fee Structure'!$B$5:$H$79,3,FALSE) -> 12000 | F64: =VLOOKUP(C64,'School Fee Structure'!$B$5:$H$79,4,FALSE) -> 5000 | G64: =VLOOKUP(C64,'School Fee Structure'!$B$5:$H$79,5,FALSE) -> 1000 | H64: =VLOOKUP(C64,'School Fee Structure'!$B$5:$H$79,6,FALSE) -> 1000 | I64: =VLOOKUP(C64,'School Fee Structure'!$B$5:$H$79,7,FALSE) -> 1000 | J64: =VLOOKUP(C64,'School Fee Structure'!$B$5:$H$79,2,FALSE) -> 20000 | K64: 2500 | L64: 2500 | M64: 2500 | N64: 2500 | S64: 10000 | T64: 10000
B65: AIS063 | C65: Nursery - B | D65: Mona | E65: =VLOOKUP(C65,'School Fee Structure'!$B$5:$H$79,3,FALSE) -> 12000 | F65: =VLOOKUP(C65,'School Fee Structure'!$B$5:$H$79,4,FALSE) -> 5000 | G65: =VLOOKUP(C65,'School Fee Structure'!$B$5:$H$79,5,FALSE) -> 1000 | H65: =VLOOKUP(C65,'School Fee Structure'!$B$5:$H$79,6,FALSE) -> 1000 | I65: =VLOOKUP(C65,'School Fee Structure'!$B$5:$H$79,7,FALSE) -> 1000 | J65: =VLOOKUP(C65,'School Fee Structure'!$B$5:$H$79,2,FALSE) -> 20000 | K65: 20000 | L65: 0 | M65: 0 | N65: 0 | S65: 20000 | T65: 0
B66: AIS064 | C66: Nursery - B | D66: Nancy | E66: =VLOOKUP(C66,'School Fee Structure'!$B$5:$H$79,3,FALSE) -> 12000 | F66: =VLOOKUP(C66,'School Fee Structure'!$B$5:$H$79,4,FALSE) -> 5000 | G66: =VLOOKUP(C66,'School Fee Structure'!$B$5:$H$79,5,FALSE) -> 1000 | H66: =VLOOKUP(C66,'School Fee Structure'!$B$5:$H$79,6,FALSE) -> 1000 | I66: =VLOOKUP(C66,'School Fee Structure'!$B$5:$H$79,7,FALSE) -> 1000 | J66: =VLOOKUP(C66,'School Fee Structure'!$B$5:$H$79,2,FALSE) -> 20000 | K66: 10000 | L66: 0 | M66: 5000 | N66: 0 | S66: 15000 | T66: 5000
B67: AIS065 | C67: Nursery - B | D67: Opera | E67: =VLOOKUP(C67,'School Fee Structure'!$B$5:$H$79,3,FALSE) -> 12000 | F67: =VLOOKUP(C67,'School Fee Structure'!$B$5:$H$79,4,FALSE) -> 5000 | G67: =VLOOKUP(C67,'School Fee Structure'!$B$5:$H$79,5,FALSE) -> 1000 | H67: =VLOOKUP(C67,'School Fee Structure'!$B$5:$H$79,6,FALSE) -> 1000 | I67: =VLOOKUP(C67,'School Fee Structure'!$B$5:$H$79,7,FALSE) -> 1000 | J67: =VLOOKUP(C67,'School Fee Structure'!$B$5:$H$79,2,FALSE) -> 20000 | K67: 15000 | L67: 0 | M67: 0 | N67: 0 | S67: 15000 | T67: 5000
B68: AIS066 | C68: Nursery - B | D68: Queen | E68: =VLOOKUP(C68,'School Fee Structure'!$B$5:$H$79,3,FALSE) -> 12000 | F68: =VLOOKUP(C68,'School Fee Structure'!$B$5:$H$79,4,FALSE) -> 5000 | G68: =VLOOKUP(C68,'School Fee Structure'!$B$5:$H$79,5,FALSE) -> 1000 | H68: =VLOOKUP(C68,'School Fee Structure'!$B$5:$H$79,6,FALSE) -> 1000 | I68: =VLOOKUP(C68,'School Fee Structure'!$B$5:$H$79,7,FALSE) -> 1000 | J68: =VLOOKUP(C68,'School Fee Structure'!$B$5:$H$79,2,FALSE) -> 20000 | K68: 5000 | M68: 5000 | S68: =SUM(K68:R68) -> 10000 | T68: =J68-S68 -> 10000
B69: AIS067 | C69: Nursery - B | D69: Patrick | E69: =VLOOKUP(C69,'School Fee Structure'!$B$5:$H$79,3,FALSE) -> 12000 | F69: =VLOOKUP(C69,'School Fee Structure'!$B$5:$H$79,4,FALSE) -> 5000 | G69: =VLOOKUP(C69,'School Fee Structure'!$B$5:$H$79,5,FALSE) -> 1000 | H69: =VLOOKUP(C69,'School Fee Structure'!$B$5:$H$79,6,FALSE) -> 1000 | I69: =VLOOKUP(C69,'School Fee Structure'!$B$5:$H$79,7,FALSE) -> 1000 | J69: =VLOOKUP(C69,'School Fee Structure'!$B$5:$H$79,2,FALSE) -> 20000 | K69: 2500 | L69: 2500 | M69: 2500 | N69: 2500 | S69: 10000 | T69: 10000
B70: AIS068 | C70: Nursery - B | D70: Roger | E70: =VLOOKUP(C70,'School Fee Structure'!$B$5:$H$79,3,FALSE) -> 12000 | F70: =VLOOKUP(C70,'School Fee Structure'!$B$5:$H$79,4,FALSE) -> 5000 | G70: =VLOOKUP(C70,'School Fee Structure'!$B$5:$H$79,5,FALSE) -> 1000 | H70: =VLOOKUP(C70,'School Fee Structure'!$B$5:$H$79,6,FALSE) -> 1000 | I70: =VLOOKUP(C70,'School Fee Structure'!$B$5:$H$79,7,FALSE) -> 1000 | J70: =VLOOKUP(C70,'School Fee Structure'!$B$5:$H$79,2,FALSE) -> 20000 | K70: 20000 | L70: 0 | M70: 0 | N70: 0 | S70: 20000 | T70: 0
B71: AIS069 | C71: Nursery - B | D71: Samuel | E71: =VLOOKUP(C71,'School Fee Structure'!$B$5:$H$79,3,FALSE) -> 12000 | F71: =VLOOKUP(C71,'School Fee Structure'!$B$5:$H$79,4,FALSE) -> 5000 | G71: =VLOOKUP(C71,'School Fee Structure'!$B$5:$H$79,5,FALSE) -> 1000 | H71: =VLOOKUP(C71,'School Fee Structure'!$B$5:$H$79,6,FALSE) -> 1000 | I71: =VLOOKUP(C71,'School Fee Structure'!$B$5:$H$79,7,FALSE) -> 1000 | J71: =VLOOKUP(C71,'School Fee Structure'!$B$5:$H$79,2,FALSE) -> 20000 | K71: 10000 | L71: 0 | M71: 5000 | N71: 0 | S71: 15000 | T71: 5000
B72: AIS070 | C72: Nursery - B | D72: Tina | E72: =VLOOKUP(C72,'School Fee Structure'!$B$5:$H$79,3,FALSE) -> 12000 | F72: =VLOOKUP(C72,'School Fee Structure'!$B$5:$H$79,4,FALSE) -> 5000 | G72: =VLOOKUP(C72,'School Fee Structure'!$B$5:$H$79,5,FALSE) -> 1000 | H72: =VLOOKUP(C72,'School Fee Structure'!$B$5:$H$79,6,FALSE) -> 1000 | I72: =VLOOKUP(C72,'School Fee Structure'!$B$5:$H$79,7,FALSE) -> 1000 | J72: =VLOOKUP(C72,'School Fee Structure'!$B$5:$H$79,2,FALSE) -> 20000 | K72: 15000 | L72: 0 | M72: 0 | N72: 0 | S72: 15000 | T72: 5000
B73: AIS071 | C73: Nursery - B | D73: Usher | E73: =VLOOKUP(C73,'School Fee Structure'!$B$5:$H$79,3,FALSE) -> 12000 | F73: =VLOOKUP(C73,'School Fee Structure'!$B$5:$H$79,4,FALSE) -> 5000 | G73: =VLOOKUP(C73,'School Fee Structure'!$B$5:$H$79,5,FALSE) -> 1000 | H73: =VLOOKUP(C73,'School Fee Structure'!$B$5:$H$79,6,FALSE) -> 1000 | I73: =VLOOKUP(C73,'School Fee Structure'!$B$5:$H$79,7,FALSE) -> 1000 | J73: =VLOOKUP(C73,'School Fee Structure'!$B$5:$H$79,2,FALSE) -> 20000 | K73: 5000 | M73: 5000 | S73: 10000 | T73: 10000
B74: AIS072 | C74: Nursery - B | D74: Vian | E74: =VLOOKUP(C74,'School Fee Structure'!$B$5:$H$79,3,FALSE) -> 12000 | F74: =VLOOKUP(C74,'School Fee Structure'!$B$5:$H$79,4,FALSE) -> 5000 | G74: =VLOOKUP(C74,'School Fee Structure'!$B$5:$H$79,5,FALSE) -> 1000 | H74: =VLOOKUP(C74,'School Fee Structure'!$B$5:$H$79,6,FALSE) -> 1000 | I74: =VLOOKUP(C74,'School Fee Structure'!$B$5:$H$79,7,FALSE) -> 1000 | J74: =VLOOKUP(C74,'School Fee Structure'!$B$5:$H$79,2,FALSE) -> 20000 | K74: 2500 | L74: 2500 | M74: 2500 | N74: 2500 | S74: 10000 | T74: 10000
B75: AIS073 | C75: Nursery - B | D75: Walter | E75: =VLOOKUP(C75,'School Fee Structure'!$B$5:$H$79,3,FALSE) -> 12000 | F75: =VLOOKUP(C75,'School Fee Structure'!$B$5:$H$79,4,FALSE) -> 5000 | G75: =VLOOKUP(C75,'School Fee Structure'!$B$5:$H$79,5,FALSE) -> 1000 | H75: =VLOOKUP(C75,'School Fee Structure'!$B$5:$H$79,6,FALSE) -> 1000 | I75: =VLOOKUP(C75,'School Fee Structure'!$B$5:$H$79,7,FALSE) -> 1000 | J75: =VLOOKUP(C75,'School Fee Structure'!$B$5:$H$79,2,FALSE) -> 20000 | K75: 20000 | L75: 0 | M75: 0 | N75: 0 | S75: 20000 | T75: 0
B76: AIS074 | C76: Nursery - B | D76: Xian | E76: =VLOOKUP(C76,'School Fee Structure'!$B$5:$H$79,3,FALSE) -> 12000 | F76: =VLOOKUP(C76,'School Fee Structure'!$B$5:$H$79,4,FALSE) -> 5000 | G76: =VLOOKUP(C76,'School Fee Structure'!$B$5:$H$79,5,FALSE) -> 1000 | H76: =VLOOKUP(C76,'School Fee Structure'!$B$5:$H$79,6,FALSE) -> 1000 | I76: =VLOOKUP(C76,'School Fee Structure'!$B$5:$H$79,7,FALSE) -> 1000 | J76: =VLOOKUP(C76,'School Fee Structure'!$B$5:$H$79,2,FALSE) -> 20000 | K76: 10000 | L76: 0 | M76: 5000 | N76: 0 | S76: 15000 | T76: 5000
B77: AIS075 | C77: Nursery - B | D77: Yola | E77: =VLOOKUP(C77,'School Fee Structure'!$B$5:$H$79,3,FALSE) -> 12000 | F77: =VLOOKUP(C77,'School Fee Structure'!$B$5:$H$79,4,FALSE) -> 5000 | G77: =VLOOKUP(C77,'School Fee Structure'!$B$5:$H$79,5,FALSE) -> 1000 | H77: =VLOOKUP(C77,'School Fee Structure'!$B$5:$H$79,6,FALSE) -> 1000 | I77: =VLOOKUP(C77,'School Fee Structure'!$B$5:$H$79,7,FALSE) -> 1000 | J77: =VLOOKUP(C77,'School Fee Structure'!$B$5:$H$79,2,FALSE) -> 20000 | K77: 15000 | L77: 0 | M77: 0 | N77: 0 | S77: 15000 | T77: 5000
B78: AIS076 | C78: Nursery - B | D78: Zimmy | E78: =VLOOKUP(C78,'School Fee Structure'!$B$5:$H$79,3,FALSE) -> 12000 | F78: =VLOOKUP(C78,'School Fee Structure'!$B$5:$H$79,4,FALSE) -> 5000 | G78: =VLOOKUP(C78,'School Fee Structure'!$B$5:$H$79,5,FALSE) -> 1000 | H78: =VLOOKUP(C78,'School Fee Structure'!$B$5:$H$79,6,FALSE) -> 1000 | I78: =VLOOKUP(C78,'School Fee Structure'!$B$5:$H$79,7,FALSE) -> 1000 | J78: =VLOOKUP(C78,'School Fee Structure'!$B$5:$H$79,2,FALSE) -> 20000 | K78: 5000 | M78: 5000 | S78: 10000 | T78: 10000
B79: AIS077 | C79: Nursery - B | D79: Aman | E79: =VLOOKUP(C79,'School Fee Structure'!$B$5:$H$79,3,FALSE) -> 12000 | F79: =VLOOKUP(C79,'School Fee Structure'!$B$5:$H$79,4,FALSE) -> 5000 | G79: =VLOOKUP(C79,'School Fee Structure'!$B$5:$H$79,5,FALSE) -> 1000 | H79: =VLOOKUP(C79,'School Fee Structure'!$B$5:$H$79,6,FALSE) -> 1000 | I79: =VLOOKUP(C79,'School Fee Structure'!$B$5:$H$79,7,FALSE) -> 1000 | J79: =VLOOKUP(C79,'School Fee Structure'!$B$5:$H$79,2,FALSE) -> 20000 | K79: 2500 | L79: 2500 | M79: 2500 | N79: 2500 | S79: 10000 | T79: 10000
B80: AIS078 | C80: Nursery - B | D80: Bijal | E80: =VLOOKUP(C80,'School Fee Structure'!$B$5:$H$79,3,FALSE) -> 12000 | F80: =VLOOKUP(C80,'School Fee Structure'!$B$5:$H$79,4,FALSE) -> 5000 | G80: =VLOOKUP(C80,'School Fee Structure'!$B$5:$H$79,5,FALSE) -> 1000 | H80: =VLOOKUP(C80,'School Fee Structure'!$B$5:$H$79,6,FALSE) -> 1000 | I80: =VLOOKUP(C80,'School Fee Structure'!$B$5:$H$79,7,FALSE) -> 1000 | J80: =VLOOKUP(C80,'School Fee Structure'!$B$5:$H$79,2,FALSE) -> 20000 | K80: 20000 | L80: 0 | M80: 0 | N80: 0 | S80: 20000 | T80: 0
B81: AIS079 | C81: Nursery - B | D81: Chandra | E81: =VLOOKUP(C81,'School Fee Structure'!$B$5:$H$79,3,FALSE) -> 12000 | F81: =VLOOKUP(C81,'School Fee Structure'!$B$5:$H$79,4,FALSE) -> 5000 | G81: =VLOOKUP(C81,'School Fee Structure'!$B$5:$H$79,5,FALSE) -> 1000 | H81: =VLOOKUP(C81,'School Fee Structure'!$B$5:$H$79,6,FALSE) -> 1000 | I81: =VLOOKUP(C81,'School Fee Structure'!$B$5:$H$79,7,FALSE) -> 1000 | J81: =VLOOKUP(C81,'School Fee Structure'!$B$5:$H$79,2,FALSE) -> 20000 | K81: 10000 | L81: 0 | M81: 5000 | N81: 0 | S81: 15000 | T81: 5000
B82: AIS080 | C82: Nursery - B | D82: Danish | E82: =VLOOKUP(C82,'School Fee Structure'!$B$5:$H$79,3,FALSE) -> 12000 | F82: =VLOOKUP(C82,'School Fee Structure'!$B$5:$H$79,4,FALSE) -> 5000 | G82: =VLOOKUP(C82,'School Fee Structure'!$B$5:$H$79,5,FALSE) -> 1000 | H82: =VLOOKUP(C82,'School Fee Structure'!$B$5:$H$79,6,FALSE) -> 1000 | I82: =VLOOKUP(C82,'School Fee Structure'!$B$5:$H$79,7,FALSE) -> 1000 | J82: =VLOOKUP(C82,'School Fee Structure'!$B$5:$H$79,2,FALSE) -> 20000 | K82: 15000 | L82: 0 | M82: 0 | N82: 0 | S82: 15000 | T82: 5000
B83: AIS081 | C83: Nursery - B | D83: Emma | E83: =VLOOKUP(C83,'School Fee Structure'!$B$5:$H$79,3,FALSE) -> 12000 | F83: =VLOOKUP(C83,'School Fee Structure'!$B$5:$H$79,4,FALSE) -> 5000 | G83: =VLOOKUP(C83,'School Fee Structure'!$B$5:$H$79,5,FALSE) -> 1000 | H83: =VLOOKUP(C83,'School Fee Structure'!$B$5:$H$79,6,FALSE) -> 1000 | I83: =VLOOKUP(C83,'School Fee Structure'!$B$5:$H$79,7,FALSE) -> 1000 | J83: =VLOOKUP(C83,'School Fee Structure'!$B$5:$H$79,2,FALSE) -> 20000 | K83: 5000 | M83: 5000 | S83: 10000 | T83: 10000
B84: AIS082 | C84: Nursery - B | D84: Firoz | E84: =VLOOKUP(C84,'School Fee Structure'!$B$5:$H$79,3,FALSE) -> 12000 | F84: =VLOOKUP(C84,'School Fee Structure'!$B$5:$H$79,4,FALSE) -> 5000 | G84: =VLOOKUP(C84,'School Fee Structure'!$B$5:$H$79,5,FALSE) -> 1000 | H84: =VLOOKUP(C84,'School Fee Structure'!$B$5:$H$79,6,FALSE) -> 1000 | I84: =VLOOKUP(C84,'School Fee Structure'!$B$5:$H$79,7,FALSE) -> 1000 | J84: =VLOOKUP(C84,'School Fee Structure'!$B$5:$H$79,2,FALSE) -> 20000 | K84: 2500 | L84: 2500 | M84: 2500 | N84: 2500 | S84: 10000 | T84: 10000
B85: AIS083 | C85: Nursery - B | D85: Gitesh | E85: =VLOOKUP(C85,'School Fee Structure'!$B$5:$H$79,3,FALSE) -> 12000 | F85: =VLOOKUP(C85,'School Fee Structure'!$B$5:$H$79,4,FALSE) -> 5000 | G85: =VLOOKUP(C85,'School Fee Structure'!$B$5:$H$79,5,FALSE) -> 1000 | H85: =VLOOKUP(C85,'School Fee Structure'!$B$5:$H$79,6,FALSE) -> 1000 | I85: =VLOOKUP(C85,'School Fee Structure'!$B$5:$H$79,7,FALSE) -> 1000 | J85: =VLOOKUP(C85,'School Fee Structure'!$B$5:$H$79,2,FALSE) -> 20000 | K85: 20000 | L85: 0 | M85: 0 | N85: 0 | S85: 20000 | T85: 0
B86: AIS084 | C86: Nursery - B | D86: Hitesh | E86: =VLOOKUP(C86,'School Fee Structure'!$B$5:$H$79,3,FALSE) -> 12000 | F86: =VLOOKUP(C86,'School Fee Structure'!$B$5:$H$79,4,FALSE) -> 5000 | G86: =VLOOKUP(C86,'School Fee Structure'!$B$5:$H$79,5,FALSE) -> 1000 | H86: =VLOOKUP(C86,'School Fee Structure'!$B$5:$H$79,6,FALSE) -> 1000 | I86: =VLOOKUP(C86,'School Fee Structure'!$B$5:$H$79,7,FALSE) -> 1000 | J86: =VLOOKUP(C86,'School Fee Structure'!$B$5:$H$79,2,FALSE) -> 20000 | K86: 10000 | L86: 0 | M86: 5000 | N86: 0 | S86: 15000 | T86: 5000
B87: AIS085 | C87: Nursery - B | D87: Ismail | E87: =VLOOKUP(C87,'School Fee Structure'!$B$5:$H$79,3,FALSE) -> 12000 | F87: =VLOOKUP(C87,'School Fee Structure'!$B$5:$H$79,4,FALSE) -> 5000 | G87: =VLOOKUP(C87,'School Fee Structure'!$B$5:$H$79,5,FALSE) -> 1000 | H87: =VLOOKUP(C87,'School Fee Structure'!$B$5:$H$79,6,FALSE) -> 1000 | I87: =VLOOKUP(C87,'School Fee Structure'!$B$5:$H$79,7,FALSE) -> 1000 | J87: =VLOOKUP(C87,'School Fee Structure'!$B$5:$H$79,2,FALSE) -> 20000 | K87: 15000 | L87: 0 | M87: 0 | N87: 0 | S87: 15000 | T87: 5000
B88: AIS086 | C88: Nursery - B | D88: Kalyan | E88: =VLOOKUP(C88,'School Fee Structure'!$B$5:$H$79,3,FALSE) -> 12000 | F88: =VLOOKUP(C88,'School Fee Structure'!$B$5:$H$79,4,FALSE) -> 5000 | G88: =VLOOKUP(C88,'School Fee Structure'!$B$5:$H$79,5,FALSE) -> 1000 | H88: =VLOOKUP(C88,'School Fee Structure'!$B$5:$H$79,6,FALSE) -> 1000 | I88: =VLOOKUP(C88,'School Fee Structure'!$B$5:$H$79,7,FALSE) -> 1000 | J88: =VLOOKUP(C88,'School Fee Structure'!$B$5:$H$79,2,FALSE) -> 20000 | K88: 5000 | M88: 5000 | S88: 10000 | T88: 10000
B89: AIS087 | C89: Nursery - B | D89: Lallan | E89: =VLOOKUP(C89,'School Fee Structure'!$B$5:$H$79,3,FALSE) -> 12000 | F89: =VLOOKUP(C89,'School Fee Structure'!$B$5:$H$79,4,FALSE) -> 5000 | G89: =VLOOKUP(C89,'School Fee Structure'!$B$5:$H$79,5,FALSE) -> 1000 | H89: =VLOOKUP(C89,'School Fee Structure'!$B$5:$H$79,6,FALSE) -> 1000 | I89: =VLOOKUP(C89,'School Fee Structure'!$B$5:$H$79,7,FALSE) -> 1000 | J89: =VLOOKUP(C89,'School Fee Structure'!$B$5:$H$79,2,FALSE) -> 20000 | K89: 2500 | L89: 2500 | M89: 2500 | N89: 2500 | S89: 10000 | T89: 10000
B90: AIS088 | C90: Nursery - B | D90: Minakshi | E90: =VLOOKUP(C90,'School Fee Structure'!$B$5:$H$79,3,FALSE) -> 12000 | F90: =VLOOKUP(C90,'School Fee Structure'!$B$5:$H$79,4,FALSE) -> 5000 | G90: =VLOOKUP(C90,'School Fee Structure'!$B$5:$H$79,5,FALSE) -> 1000 | H90: =VLOOKUP(C90,'School Fee Structure'!$B$5:$H$79,6,FALSE) -> 1000 | I90: =VLOOKUP(C90,'School Fee Structure'!$B$5:$H$79,7,FALSE) -> 1000 | J90: =VLOOKUP(C90,'School Fee Structure'!$B$5:$H$79,2,FALSE) -> 20000 | K90: 20000 | L90: 0 | M90: 0 | N90: 0 | S90: 20000 | T90: 0
B91: AIS089 | C91: Nursery - B | D91: Naitik | E91: =VLOOKUP(C91,'School Fee Structure'!$B$5:$H$79,3,FALSE) -> 12000 | F91: =VLOOKUP(C91,'School Fee Structure'!$B$5:$H$79,4,FALSE) -> 5000 | G91: =VLOOKUP(C91,'School Fee Structure'!$B$5:$H$79,5,FALSE) -> 1000 | H91: =VLOOKUP(C91,'School Fee Structure'!$B$5:$H$79,6,FALSE) -> 1000 | I91: =VLOOKUP(C91,'School Fee Structure'!$B$5:$H$79,7,FALSE) -> 1000 | J91: =VLOOKUP(C91,'School Fee Structure'!$B$5:$H$79,2,FALSE) -> 20000 | K91: 10000 | L91: 0 | M91: 5000 | N91: 0 | S91: 15000 | T91: 5000
B92: AIS090 | C92: Nursery - B | D92: Owais | E92: =VLOOKUP(C92,'School Fee Structure'!$B$5:$H$79,3,FALSE) -> 12000 | F92: =VLOOKUP(C92,'School Fee Structure'!$B$5:$H$79,4,FALSE) -> 5000 | G92: =VLOOKUP(C92,'School Fee Structure'!$B$5:$H$79,5,FALSE) -> 1000 | H92: =VLOOKUP(C92,'School Fee Structure'!$B$5:$H$79,6,FALSE) -> 1000 | I92: =VLOOKUP(C92,'School Fee Structure'!$B$5:$H$79,7,FALSE) -> 1000 | J92: =VLOOKUP(C92,'School Fee Structure'!$B$5:$H$79,2,FALSE) -> 20000 | K92: 15000 | L92: 0 | M92: 0 | N92: 0 | S92: 15000 | T92: 5000
B93: AIS091 | C93: Nursery - B | D93: Pinal | E93: =VLOOKUP(C93,'School Fee Structure'!$B$5:$H$79,3,FALSE) -> 12000 | F93: =VLOOKUP(C93,'School Fee Structure'!$B$5:$H$79,4,FALSE) -> 5000 | G93: =VLOOKUP(C93,'School Fee Structure'!$B$5:$H$79,5,FALSE) -> 1000 | H93: =VLOOKUP(C93,'School Fee Structure'!$B$5:$H$79,6,FALSE) -> 1000 | I93: =VLOOKUP(C93,'School Fee Structure'!$B$5:$H$79,7,FALSE) -> 1000 | J93: =VLOOKUP(C93,'School Fee Structure'!$B$5:$H$79,2,FALSE) -> 20000 | K93: 5000 | M93: 5000 | S93: 10000 | T93: 10000
B94: AIS092 | C94: Nursery - B | D94: Qamar | E94: =VLOOKUP(C94,'School Fee Structure'!$B$5:$H$79,3,FALSE) -> 12000 | F94: =VLOOKUP(C94,'School Fee Structure'!$B$5:$H$79,4,FALSE) -> 5000 | G94: =VLOOKUP(C94,'School Fee Structure'!$B$5:$H$79,5,FALSE) -> 1000 | H94: =VLOOKUP(C94,'School Fee Structure'!$B$5:$H$79,6,FALSE) -> 1000 | I94: =VLOOKUP(C94,'School Fee Structure'!$B$5:$H$79,7,FALSE) -> 1000 | J94: =VLOOKUP(C94,'School Fee Structure'!$B$5:$H$79,2,FALSE) -> 20000 | K94: 2500 | L94: 2500 | M94: 2500 | N94: 2500 | S94: 10000 | T94: 10000
B95: AIS093 | C95: Nursery - B | D95: Rahim | E95: =VLOOKUP(C95,'School Fee Structure'!$B$5:$H$79,3,FALSE) -> 12000 | F95: =VLOOKUP(C95,'School Fee Structure'!$B$5:$H$79,4,FALSE) -> 5000 | G95: =VLOOKUP(C95,'School Fee Structure'!$B$5:$H$79,5,FALSE) -> 1000 | H95: =VLOOKUP(C95,'School Fee Structure'!$B$5:$H$79,6,FALSE) -> 1000 | I95: =VLOOKUP(C95,'School Fee Structure'!$B$5:$H$79,7,FALSE) -> 1000 | J95: =VLOOKUP(C95,'School Fee Structure'!$B$5:$H$79,2,FALSE) -> 20000 | K95: 20000 | L95: 0 | M95: 0 | N95: 0 | S95: 20000 | T95: 0
B96: AIS094 | C96: Nursery - B | D96: Sunder | E96: =VLOOKUP(C96,'School Fee Structure'!$B$5:$H$79,3,FALSE) -> 12000 | F96: =VLOOKUP(C96,'School Fee Structure'!$B$5:$H$79,4,FALSE) -> 5000 | G96: =VLOOKUP(C96,'School Fee Structure'!$B$5:$H$79,5,FALSE) -> 1000 | H96: =VLOOKUP(C96,'School Fee Structure'!$B$5:$H$79,6,FALSE) -> 1000 | I96: =VLOOKUP(C96,'School Fee Structure'!$B$5:$H$79,7,FALSE) -> 1000 | J96: =VLOOKUP(C96,'School Fee Structure'!$B$5:$H$79,2,FALSE) -> 20000 | K96: 10000 | L96: 0 | M96: 5000 | N96: 0 | S96: 15000 | T96: 5000
B97: AIS095 | C97: Nursery - B | D97: Tahir | E97: =VLOOKUP(C97,'School Fee Structure'!$B$5:$H$79,3,FALSE) -> 12000 | F97: =VLOOKUP(C97,'School Fee Structure'!$B$5:$H$79,4,FALSE) -> 5000 | G97: =VLOOKUP(C97,'School Fee Structure'!$B$5:$H$79,5,FALSE) -> 1000 | H97: =VLOOKUP(C97,'School Fee Structure'!$B$5:$H$79,6,FALSE) -> 1000 | I97: =VLOOKUP(C97,'School Fee Structure'!$B$5:$H$79,7,FALSE) -> 1000 | J97: =VLOOKUP(C97,'School Fee Structure'!$B$5:$H$79,2,FALSE) -> 20000 | K97: 15000 | L97: 0 | M97: 0 | N97: 0 | S97: 15000 | T97: 5000
B98: AIS096 | C98: Nursery - B | D98: Umar | E98: =VLOOKUP(C98,'School Fee Structure'!$B$5:$H$79,3,FALSE) -> 12000 | F98: =VLOOKUP(C98,'School Fee Structure'!$B$5:$H$79,4,FALSE) -> 5000 | G98: =VLOOKUP(C98,'School Fee Structure'!$B$5:$H$79,5,FALSE) -> 1000 | H98: =VLOOKUP(C98,'School Fee Structure'!$B$5:$H$79,6,FALSE) -> 1000 | I98: =VLOOKUP(C98,'School Fee Structure'!$B$5:$H$79,7,FALSE) -> 1000 | J98: =VLOOKUP(C98,'School Fee Structure'!$B$5:$H$79,2,FALSE) -> 20000 | K98: 5000 | M98: 5000 | S98: 10000 | T98: 10000
B99: AIS097 | C99: Nursery - B | D99: Vishal | E99: =VLOOKUP(C99,'School Fee Structure'!$B$5:$H$79,3,FALSE) -> 12000 | F99: =VLOOKUP(C99,'School Fee Structure'!$B$5:$H$79,4,FALSE) -> 5000 | G99: =VLOOKUP(C99,'School Fee Structure'!$B$5:$H$79,5,FALSE) -> 1000 | H99: =VLOOKUP(C99,'School Fee Structure'!$B$5:$H$79,6,FALSE) -> 1000 | I99: =VLOOKUP(C99,'School Fee Structure'!$B$5:$H$79,7,FALSE) -> 1000 | J99: =VLOOKUP(C99,'School Fee Structure'!$B$5:$H$79,2,FALSE) -> 20000 | K99: 2500 | L99: 2500 | M99: 2500 | N99: 2500 | S99: 10000 | T99: 10000
B100: AIS098 | C100: Nursery - B | D100: Wafa | E100: =VLOOKUP(C100,'School Fee Structure'!$B$5:$H$79,3,FALSE) -> 12000 | F100: =VLOOKUP(C100,'School Fee Structure'!$B$5:$H$79,4,FALSE) -> 5000 | G100: =VLOOKUP(C100,'School Fee Structure'!$B$5:$H$79,5,FALSE) -> 1000 | H100: =VLOOKUP(C100,'School Fee Structure'!$B$5:$H$79,6,FALSE) -> 1000 | I100: =VLOOKUP(C100,'School Fee Structure'!$B$5:$H$79,7,FALSE) -> 1000 | J100: =VLOOKUP(C100,'School Fee Structure'!$B$5:$H$79,2,FALSE) -> 20000 | K100: 20000 | L100: 0 | M100: 0 | N100: 0 | S100: 20000 | T100: 0
B101: AIS099 | C101: Nursery - B | D101: Xolo | E101: =VLOOKUP(C101,'School Fee Structure'!$B$5:$H$79,3,FALSE) -> 12000 | F101: =VLOOKUP(C101,'School Fee Structure'!$B$5:$H$79,4,FALSE) -> 5000 | G101: =VLOOKUP(C101,'School Fee Structure'!$B$5:$H$79,5,FALSE) -> 1000 | H101: =VLOOKUP(C101,'School Fee Structure'!$B$5:$H$79,6,FALSE) -> 1000 | I101: =VLOOKUP(C101,'School Fee Structure'!$B$5:$H$79,7,FALSE) -> 1000 | J101: =VLOOKUP(C101,'School Fee Structure'!$B$5:$H$79,2,FALSE) -> 20000 | K101: 10000 | L101: 0 | M101: 5000 | N101: 0 | S101: 15000 | T101: 5000
B102: AIS100 | C102: Nursery - B | D102: Zahid | E102: =VLOOKUP(C102,'School Fee Structure'!$B$5:$H$79,3,FALSE) -> 12000 | F102: =VLOOKUP(C102,'School Fee Structure'!$B$5:$H$79,4,FALSE) -> 5000 | G102: =VLOOKUP(C102,'School Fee Structure'!$B$5:$H$79,5,FALSE) -> 1000 | H102: =VLOOKUP(C102,'School Fee Structure'!$B$5:$H$79,6,FALSE) -> 1000 | I102: =VLOOKUP(C102,'School Fee Structure'!$B$5:$H$79,7,FALSE) -> 1000 | J102: =VLOOKUP(C102,'School Fee Structure'!$B$5:$H$79,2,FALSE) -> 20000 | K102: 15000 | L102: 0 | M102: 0 | N102: 0 | S102: 15000 | T102: 5000
B103: AIS101 | C103: Nursery - C | D103: Albert | E103: =VLOOKUP(C103,'School Fee Structure'!$B$5:$H$79,3,FALSE) -> 12000 | F103: =VLOOKUP(C103,'School Fee Structure'!$B$5:$H$79,4,FALSE) -> 5000 | G103: =VLOOKUP(C103,'School Fee Structure'!$B$5:$H$79,5,FALSE) -> 1000 | H103: =VLOOKUP(C103,'School Fee Structure'!$B$5:$H$79,6,FALSE) -> 1000 | I103: =VLOOKUP(C103,'School Fee Structure'!$B$5:$H$79,7,FALSE) -> 1000 | J103: =VLOOKUP(C103,'School Fee Structure'!$B$5:$H$79,2,FALSE) -> 20000 | K103: 5000 | M103: 5000 | S103: 10000 | T103: 10000
B104: AIS102 | C104: Nursery - C | D104: Benjamin | E104: =VLOOKUP(C104,'School Fee Structure'!$B$5:$H$79,3,FALSE) -> 12000 | F104: =VLOOKUP(C104,'School Fee Structure'!$B$5:$H$79,4,FALSE) -> 5000 | G104: =VLOOKUP(C104,'School Fee Structure'!$B$5:$H$79,5,FALSE) -> 1000 | H104: =VLOOKUP(C104,'School Fee Structure'!$B$5:$H$79,6,FALSE) -> 1000 | I104: =VLOOKUP(C104,'School Fee Structure'!$B$5:$H$79,7,FALSE) -> 1000 | J104: =VLOOKUP(C104,'School Fee Structure'!$B$5:$H$79,2,FALSE) -> 20000 | K104: 2500 | L104: 2500 | M104: 2500 | N104: 2500 | S104: 10000 | T104: 10000
B105: AIS103 | C105: Nursery - C | D105: Clara | E105: =VLOOKUP(C105,'School Fee Structure'!$B$5:$H$79,3,FALSE) -> 12000 | F105: =VLOOKUP(C105,'School Fee Structure'!$B$5:$H$79,4,FALSE) -> 5000 | G105: =VLOOKUP(C105,'School Fee Structure'!$B$5:$H$79,5,FALSE) -> 1000 | H105: =VLOOKUP(C105,'School Fee Structure'!$B$5:$H$79,6,FALSE) -> 1000 | I105: =VLOOKUP(C105,'School Fee Structure'!$B$5:$H$79,7,FALSE) -> 1000 | J105: =VLOOKUP(C105,'School Fee Structure'!$B$5:$H$79,2,FALSE) -> 20000 | K105: 20000 | L105: 0 | M105: 0 | N105: 0 | S105: 20000 | T105: 0
B106: AIS104 | C106: Nursery - C | D106: Dany | E106: =VLOOKUP(C106,'School Fee Structure'!$B$5:$H$79,3,FALSE) -> 12000 | F106: =VLOOKUP(C106,'School Fee Structure'!$B$5:$H$79,4,FALSE) -> 5000 | G106: =VLOOKUP(C106,'School Fee Structure'!$B$5:$H$79,5,FALSE) -> 1000 | H106: =VLOOKUP(C106,'School Fee Structure'!$B$5:$H$79,6,FALSE) -> 1000 | I106: =VLOOKUP(C106,'School Fee Structure'!$B$5:$H$79,7,FALSE) -> 1000 | J106: =VLOOKUP(C106,'School Fee Structure'!$B$5:$H$79,2,FALSE) -> 20000 | K106: 10000 | L106: 0 | M106: 5000 | N106: 0 | S106: 15000 | T106: 5000
B107: AIS105 | C107: Nursery - C | D107: Emanuel | E107: =VLOOKUP(C107,'School Fee Structure'!$B$5:$H$79,3,FALSE) -> 12000 | F107: =VLOOKUP(C107,'School Fee Structure'!$B$5:$H$79,4,FALSE) -> 5000 | G107: =VLOOKUP(C107,'School Fee Structure'!$B$5:$H$79,5,FALSE) -> 1000 | H107: =VLOOKUP(C107,'School Fee Structure'!$B$5:$H$79,6,FALSE) -> 1000 | I107: =VLOOKUP(C107,'School Fee Structure'!$B$5:$H$79,7,FALSE) -> 1000 | J107: =VLOOKUP(C107,'School Fee Structure'!$B$5:$H$79,2,FALSE) -> 20000 | K107: 15000 | L107: 0 | M107: 0 | N107: 0 | S107: 15000 | T107: 5000
B108: AIS106 | C108: Nursery - C | D108: Fedrick | E108: =VLOOKUP(C108,'School Fee Structure'!$B$5:$H$79,3,FALSE) -> 12000 | F108: =VLOOKUP(C108,'School Fee Structure'!$B$5:$H$79,4,FALSE) -> 5000 | G108: =VLOOKUP(C108,'School Fee Structure'!$B$5:$H$79,5,FALSE) -> 1000 | H108: =VLOOKUP(C108,'School Fee Structure'!$B$5:$H$79,6,FALSE) -> 1000 | I108: =VLOOKUP(C108,'School Fee Structure'!$B$5:$H$79,7,FALSE) -> 1000 | J108: =VLOOKUP(C108,'School Fee Structure'!$B$5:$H$79,2,FALSE) -> 20000 | K108: 5000 | M108: 5000 | S108: 10000 | T108: 10000
B109: AIS107 | C109: Nursery - C | D109: Gavin | E109: =VLOOKUP(C109,'School Fee Structure'!$B$5:$H$79,3,FALSE) -> 12000 | F109: =VLOOKUP(C109,'School Fee Structure'!$B$5:$H$79,4,FALSE) -> 5000 | G109: =VLOOKUP(C109,'School Fee Structure'!$B$5:$H$79,5,FALSE) -> 1000 | H109: =VLOOKUP(C109,'School Fee Structure'!$B$5:$H$79,6,FALSE) -> 1000 | I109: =VLOOKUP(C109,'School Fee Structure'!$B$5:$H$79,7,FALSE) -> 1000 | J109: =VLOOKUP(C109,'School Fee Structure'!$B$5:$H$79,2,FALSE) -> 20000 | K109: 2500 | L109: 2500 | M109: 2500 | N109: 2500 | S109: 10000 | T109: 10000
B110: AIS108 | C110: Nursery - C | D110: Hayden | E110: =VLOOKUP(C110,'School Fee Structure'!$B$5:$H$79,3,FALSE) -> 12000 | F110: =VLOOKUP(C110,'School Fee Structure'!$B$5:$H$79,4,FALSE) -> 5000 | G110: =VLOOKUP(C110,'School Fee Structure'!$B$5:$H$79,5,FALSE) -> 1000 | H110: =VLOOKUP(C110,'School Fee Structure'!$B$5:$H$79,6,FALSE) -> 1000 | I110: =VLOOKUP(C110,'School Fee Structure'!$B$5:$H$79,7,FALSE) -> 1000 | J110: =VLOOKUP(C110,'School Fee Structure'!$B$5:$H$79,2,FALSE) -> 20000 | K110: 20000 | L110: 0 | M110: 0 | N110: 0 | S110: 20000 | T110: 0
B111: AIS109 | C111: Nursery - C | D111: Ian | E111: =VLOOKUP(C111,'School Fee Structure'!$B$5:$H$79,3,FALSE) -> 12000 | F111: =VLOOKUP(C111,'School Fee Structure'!$B$5:$H$79,4,FALSE) -> 5000 | G111: =VLOOKUP(C111,'School Fee Structure'!$B$5:$H$79,5,FALSE) -> 1000 | H111: =VLOOKUP(C111,'School Fee Structure'!$B$5:$H$79,6,FALSE) -> 1000 | I111: =VLOOKUP(C111,'School Fee Structure'!$B$5:$H$79,7,FALSE) -> 1000 | J111: =VLOOKUP(C111,'School Fee Structure'!$B$5:$H$79,2,FALSE) -> 20000 | K111: 10000 | L111: 0 | M111: 5000 | N111: 0 | S111: 15000 | T111: 5000
B112: AIS110 | C112: Nursery - C | D112: Jacob | E112: =VLOOKUP(C112,'School Fee Structure'!$B$5:$H$79,3,FALSE) -> 12000 | F112: =VLOOKUP(C112,'School Fee Structure'!$B$5:$H$79,4,FALSE) -> 5000 | G112: =VLOOKUP(C112,'School Fee Structure'!$B$5:$H$79,5,FALSE) -> 1000 | H112: =VLOOKUP(C112,'School Fee Structure'!$B$5:$H$79,6,FALSE) -> 1000 | I112: =VLOOKUP(C112,'School Fee Structure'!$B$5:$H$79,7,FALSE) -> 1000 | J112: =VLOOKUP(C112,'School Fee Structure'!$B$5:$H$79,2,FALSE) -> 20000 | K112: 15000 | L112: 0 | M112: 0 | N112: 0 | S112: 15000 | T112: 5000
B113: AIS111 | C113: Nursery - C | D113: Katy | E113: =VLOOKUP(C113,'School Fee Structure'!$B$5:$H$79,3,FALSE) -> 12000 | F113: =VLOOKUP(C113,'School Fee Structure'!$B$5:$H$79,4,FALSE) -> 5000 | G113: =VLOOKUP(C113,'School Fee Structure'!$B$5:$H$79,5,FALSE) -> 1000 | H113: =VLOOKUP(C113,'School Fee Structure'!$B$5:$H$79,6,FALSE) -> 1000 | I113: =VLOOKUP(C113,'School Fee Structure'!$B$5:$H$79,7,FALSE) -> 1000 | J113: =VLOOKUP(C113,'School Fee Structure'!$B$5:$H$79,2,FALSE) -> 20000 | K113: 5000 | M113: 5000 | S113: 10000 | T113: 10000
B114: AIS112 | C114: Nursery - C | D114: Lorel | E114: =VLOOKUP(C114,'School Fee Structure'!$B$5:$H$79,3,FALSE) -> 12000 | F114: =VLOOKUP(C114,'School Fee Structure'!$B$5:$H$79,4,FALSE) -> 5000 | G114: =VLOOKUP(C114,'School Fee Structure'!$B$5:$H$79,5,FALSE) -> 1000 | H114: =VLOOKUP(C114,'School Fee Structure'!$B$5:$H$79,6,FALSE) -> 1000 | I114: =VLOOKUP(C114,'School Fee Structure'!$B$5:$H$79,7,FALSE) -> 1000 | J114: =VLOOKUP(C114,'School Fee Structure'!$B$5:$H$79,2,FALSE) -> 20000 | K114: 2500 | L114: 2500 | M114: 2500 | N114: 2500 | S114: 10000 | T114: 10000
B115: AIS113 | C115: Nursery - C | D115: Mona | E115: =VLOOKUP(C115,'School Fee Structure'!$B$5:$H$79,3,FALSE) -> 12000 | F115: =VLOOKUP(C115,'School Fee Structure'!$B$5:$H$79,4,FALSE) -> 5000 | G115: =VLOOKUP(C115,'School Fee Structure'!$B$5:$H$79,5,FALSE) -> 1000 | H115: =VLOOKUP(C115,'School Fee Structure'!$B$5:$H$79,6,FALSE) -> 1000 | I115: =VLOOKUP(C115,'School Fee Structure'!$B$5:$H$79,7,FALSE) -> 1000 | J115: =VLOOKUP(C115,'School Fee Structure'!$B$5:$H$79,2,FALSE) -> 20000 | K115: 20000 | L115: 0 | M115: 0 | N115: 0 | S115: 20000 | T115: 0
B116: AIS114 | C116: Nursery - C | D116: Nancy | E116: =VLOOKUP(C116,'School Fee Structure'!$B$5:$H$79,3,FALSE) -> 12000 | F116: =VLOOKUP(C116,'School Fee Structure'!$B$5:$H$79,4,FALSE) -> 5000 | G116: =VLOOKUP(C116,'School Fee Structure'!$B$5:$H$79,5,FALSE) -> 1000 | H116: =VLOOKUP(C116,'School Fee Structure'!$B$5:$H$79,6,FALSE) -> 1000 | I116: =VLOOKUP(C116,'School Fee Structure'!$B$5:$H$79,7,FALSE) -> 1000 | J116: =VLOOKUP(C116,'School Fee Structure'!$B$5:$H$79,2,FALSE) -> 20000 | K116: 10000 | L116: 0 | M116: 5000 | N116: 0 | S116: 15000 | T116: 5000
B117: AIS115 | C117: Nursery - C | D117: Opera | E117: =VLOOKUP(C117,'School Fee Structure'!$B$5:$H$79,3,FALSE) -> 12000 | F117: =VLOOKUP(C117,'School Fee Structure'!$B$5:$H$79,4,FALSE) -> 5000 | G117: =VLOOKUP(C117,'School Fee Structure'!$B$5:$H$79,5,FALSE) -> 1000 | H117: =VLOOKUP(C117,'School Fee Structure'!$B$5:$H$79,6,FALSE) -> 1000 | I117: =VLOOKUP(C117,'School Fee Structure'!$B$5:$H$79,7,FALSE) -> 1000 | J117: =VLOOKUP(C117,'School Fee Structure'!$B$5:$H$79,2,FALSE) -> 20000 | K117: 15000 | L117: 0 | M117: 0 | N117: 0 | S117: 15000 | T117: 5000
B118: AIS116 | C118: Nursery - C | D118: Queen | E118: =VLOOKUP(C118,'School Fee Structure'!$B$5:$H$79,3,FALSE) -> 12000 | F118: =VLOOKUP(C118,'School Fee Structure'!$B$5:$H$79,4,FALSE) -> 5000 | G118: =VLOOKUP(C118,'School Fee Structure'!$B$5:$H$79,5,FALSE) -> 1000 | H118: =VLOOKUP(C118,'School Fee Structure'!$B$5:$H$79,6,FALSE) -> 1000 | I118: =VLOOKUP(C118,'School Fee Structure'!$B$5:$H$79,7,FALSE) -> 1000 | J118: =VLOOKUP(C118,'School Fee Structure'!$B$5:$H$79,2,FALSE) -> 20000 | K118: 5000 | M118: 5000 | S118: 10000 | T118: 10000
B119: AIS117 | C119: Nursery - C | D119: Patrick | E119: =VLOOKUP(C119,'School Fee Structure'!$B$5:$H$79,3,FALSE) -> 12000 | F119: =VLOOKUP(C119,'School Fee Structure'!$B$5:$H$79,4,FALSE) -> 5000 | G119: =VLOOKUP(C119,'School Fee Structure'!$B$5:$H$79,5,FALSE) -> 1000 | H119: =VLOOKUP(C119,'School Fee Structure'!$B$5:$H$79,6,FALSE) -> 1000 | I119: =VLOOKUP(C119,'School Fee Structure'!$B$5:$H$79,7,FALSE) -> 1000 | J119: =VLOOKUP(C119,'School Fee Structure'!$B$5:$H$79,2,FALSE) -> 20000 | K119: 2500 | L119: 2500 | M119: 2500 | N119: 2500 | S119: 10000 | T119: 10000
B120: AIS118 | C120: Nursery - C | D120: Roger | E120: =VLOOKUP(C120,'School Fee Structure'!$B$5:$H$79,3,FALSE) -> 12000 | F120: =VLOOKUP(C120,'School Fee Structure'!$B$5:$H$79,4,FALSE) -> 5000 | G120: =VLOOKUP(C120,'School Fee Structure'!$B$5:$H$79,5,FALSE) -> 1000 | H120: =VLOOKUP(C120,'School Fee Structure'!$B$5:$H$79,6,FALSE) -> 1000 | I120: =VLOOKUP(C120,'School Fee Structure'!$B$5:$H$79,7,FALSE) -> 1000 | J120: =VLOOKUP(C120,'School Fee Structure'!$B$5:$H$79,2,FALSE) -> 20000 | K120: 20000 | L120: 0 | M120: 0 | N120: 0 | S120: 20000 | T120: 0
B121: AIS119 | C121: Nursery - C | D121: Samuel | E121: =VLOOKUP(C121,'School Fee Structure'!$B$5:$H$79,3,FALSE) -> 12000 | F121: =VLOOKUP(C121,'School Fee Structure'!$B$5:$H$79,4,FALSE) -> 5000 | G121: =VLOOKUP(C121,'School Fee Structure'!$B$5:$H$79,5,FALSE) -> 1000 | H121: =VLOOKUP(C121,'School Fee Structure'!$B$5:$H$79,6,FALSE) -> 1000 | I121: =VLOOKUP(C121,'School Fee Structure'!$B$5:$H$79,7,FALSE) -> 1000 | J121: =VLOOKUP(C121,'School Fee Structure'!$B$5:$H$79,2,FALSE) -> 20000 | K121: 10000 | L121: 0 | M121: 5000 | N121: 0 | S121: 15000 | T121: 5000
B122: AIS120 | C122: Nursery - C | D122: Tina | E122: =VLOOKUP(C122,'School Fee Structure'!$B$5:$H$79,3,FALSE) -> 12000 | F122: =VLOOKUP(C122,'School Fee Structure'!$B$5:$H$79,4,FALSE) -> 5000 | G122: =VLOOKUP(C122,'School Fee Structure'!$B$5:$H$79,5,FALSE) -> 1000 | H122: =VLOOKUP(C122,'School Fee Structure'!$B$5:$H$79,6,FALSE) -> 1000 | I122: =VLOOKUP(C122,'School Fee Structure'!$B$5:$H$79,7,FALSE) -> 1000 | J122: =VLOOKUP(C122,'School Fee Structure'!$B$5:$H$79,2,FALSE) -> 20000 | K122: 15000 | L122: 0 | M122: 0 | N122: 0 | S122: 15000 | T122: 5000
B123: AIS121 | C123: Nursery - C | D123: Usher | E123: =VLOOKUP(C123,'School Fee Structure'!$B$5:$H$79,3,FALSE) -> 12000 | F123: =VLOOKUP(C123,'School Fee Structure'!$B$5:$H$79,4,FALSE) -> 5000 | G123: =VLOOKUP(C123,'School Fee Structure'!$B$5:$H$79,5,FALSE) -> 1000 | H123: =VLOOKUP(C123,'School Fee Structure'!$B$5:$H$79,6,FALSE) -> 1000 | I123: =VLOOKUP(C123,'School Fee Structure'!$B$5:$H$79,7,FALSE) -> 1000 | J123: =VLOOKUP(C123,'School Fee Structure'!$B$5:$H$79,2,FALSE) -> 20000 | K123: 5000 | M123: 5000 | S123: 10000 | T123: 10000
B124: AIS122 | C124: Nursery - C | D124: Vian | E124: =VLOOKUP(C124,'School Fee Structure'!$B$5:$H$79,3,FALSE) -> 12000 | F124: =VLOOKUP(C124,'School Fee Structure'!$B$5:$H$79,4,FALSE) -> 5000 | G124: =VLOOKUP(C124,'School Fee Structure'!$B$5:$H$79,5,FALSE) -> 1000 | H124: =VLOOKUP(C124,'School Fee Structure'!$B$5:$H$79,6,FALSE) -> 1000 | I124: =VLOOKUP(C124,'School Fee Structure'!$B$5:$H$79,7,FALSE) -> 1000 | J124: =VLOOKUP(C124,'School Fee Structure'!$B$5:$H$79,2,FALSE) -> 20000 | K124: 2500 | L124: 2500 | M124: 2500 | N124: 2500 | S124: 10000 | T124: 10000
B125: AIS123 | C125: Nursery - C | D125: Walter | E125: =VLOOKUP(C125,'School Fee Structure'!$B$5:$H$79,3,FALSE) -> 12000 | F125: =VLOOKUP(C125,'School Fee Structure'!$B$5:$H$79,4,FALSE) -> 5000 | G125: =VLOOKUP(C125,'School Fee Structure'!$B$5:$H$79,5,FALSE) -> 1000 | H125: =VLOOKUP(C125,'School Fee Structure'!$B$5:$H$79,6,FALSE) -> 1000 | I125: =VLOOKUP(C125,'School Fee Structure'!$B$5:$H$79,7,FALSE) -> 1000 | J125: =VLOOKUP(C125,'School Fee Structure'!$B$5:$H$79,2,FALSE) -> 20000 | K125: 20000 | L125: 0 | M125: 0 | N125: 0 | S125: 20000 | T125: 0
B126: AIS124 | C126: Nursery - C | D126: Xian | E126: =VLOOKUP(C126,'School Fee Structure'!$B$5:$H$79,3,FALSE) -> 12000 | F126: =VLOOKUP(C126,'School Fee Structure'!$B$5:$H$79,4,FALSE) -> 5000 | G126: =VLOOKUP(C126,'School Fee Structure'!$B$5:$H$79,5,FALSE) -> 1000 | H126: =VLOOKUP(C126,'School Fee Structure'!$B$5:$H$79,6,FALSE) -> 1000 | I126: =VLOOKUP(C126,'School Fee Structure'!$B$5:$H$79,7,FALSE) -> 1000 | J126: =VLOOKUP(C126,'School Fee Structure'!$B$5:$H$79,2,FALSE) -> 20000 | K126: 10000 | L126: 0 | M126: 5000 | N126: 0 | S126: 15000 | T126: 5000
B127: AIS125 | C127: Nursery - C | D127: Yola | E127: =VLOOKUP(C127,'School Fee Structure'!$B$5:$H$79,3,FALSE) -> 12000 | F127: =VLOOKUP(C127,'School Fee Structure'!$B$5:$H$79,4,FALSE) -> 5000 | G127: =VLOOKUP(C127,'School Fee Structure'!$B$5:$H$79,5,FALSE) -> 1000 | H127: =VLOOKUP(C127,'School Fee Structure'!$B$5:$H$79,6,FALSE) -> 1000 | I127: =VLOOKUP(C127,'School Fee Structure'!$B$5:$H$79,7,FALSE) -> 1000 | J127: =VLOOKUP(C127,'School Fee Structure'!$B$5:$H$79,2,FALSE) -> 20000 | K127: 15000 | L127: 0 | M127: 0 | N127: 0 | S127: 15000 | T127: 5000
B128: AIS126 | C128: Nursery - C | D128: Zimmy | E128: =VLOOKUP(C128,'School Fee Structure'!$B$5:$H$79,3,FALSE) -> 12000 | F128: =VLOOKUP(C128,'School Fee Structure'!$B$5:$H$79,4,FALSE) -> 5000 | G128: =VLOOKUP(C128,'School Fee Structure'!$B$5:$H$79,5,FALSE) -> 1000 | H128: =VLOOKUP(C128,'School Fee Structure'!$B$5:$H$79,6,FALSE) -> 1000 | I128: =VLOOKUP(C128,'School Fee Structure'!$B$5:$H$79,7,FALSE) -> 1000 | J128: =VLOOKUP(C128,'School Fee Structure'!$B$5:$H$79,2,FALSE) -> 20000 | K128: 5000 | M128: 5000 | S128: 10000 | T128: 10000
B129: AIS127 | C129: Nursery - C | D129: Aman | E129: =VLOOKUP(C129,'School Fee Structure'!$B$5:$H$79,3,FALSE) -> 12000 | F129: =VLOOKUP(C129,'School Fee Structure'!$B$5:$H$79,4,FALSE) -> 5000 | G129: =VLOOKUP(C129,'School Fee Structure'!$B$5:$H$79,5,FALSE) -> 1000 | H129: =VLOOKUP(C129,'School Fee Structure'!$B$5:$H$79,6,FALSE) -> 1000 | I129: =VLOOKUP(C129,'School Fee Structure'!$B$5:$H$79,7,FALSE) -> 1000 | J129: =VLOOKUP(C129,'School Fee Structure'!$B$5:$H$79,2,FALSE) -> 20000 | K129: 2500 | L129: 2500 | M129: 2500 | N129: 2500 | S129: 10000 | T129: 10000
B130: AIS128 | C130: Nursery - C | D130: Bijal | E130: =VLOOKUP(C130,'School Fee Structure'!$B$5:$H$79,3,FALSE) -> 12000 | F130: =VLOOKUP(C130,'School Fee Structure'!$B$5:$H$79,4,FALSE) -> 5000 | G130: =VLOOKUP(C130,'School Fee Structure'!$B$5:$H$79,5,FALSE) -> 1000 | H130: =VLOOKUP(C130,'School Fee Structure'!$B$5:$H$79,6,FALSE) -> 1000 | I130: =VLOOKUP(C130,'School Fee Structure'!$B$5:$H$79,7,FALSE) -> 1000 | J130: =VLOOKUP(C130,'School Fee Structure'!$B$5:$H$79,2,FALSE) -> 20000 | K130: 20000 | L130: 0 | M130: 0 | N130: 0 | S130: 20000 | T130: 0
B131: AIS129 | C131: Nursery - C | D131: Chandra | E131: =VLOOKUP(C131,'School Fee Structure'!$B$5:$H$79,3,FALSE) -> 12000 | F131: =VLOOKUP(C131,'School Fee Structure'!$B$5:$H$79,4,FALSE) -> 5000 | G131: =VLOOKUP(C131,'School Fee Structure'!$B$5:$H$79,5,FALSE) -> 1000 | H131: =VLOOKUP(C131,'School Fee Structure'!$B$5:$H$79,6,FALSE) -> 1000 | I131: =VLOOKUP(C131,'School Fee Structure'!$B$5:$H$79,7,FALSE) -> 1000 | J131: =VLOOKUP(C131,'School Fee Structure'!$B$5:$H$79,2,FALSE) -> 20000 | K131: 10000 | L131: 0 | M131: 5000 | N131: 0 | S131: 15000 | T131: 5000
B132: AIS130 | C132: Nursery - C | D132: Danish | E132: =VLOOKUP(C132,'School Fee Structure'!$B$5:$H$79,3,FALSE) -> 12000 | F132: =VLOOKUP(C132,'School Fee Structure'!$B$5:$H$79,4,FALSE) -> 5000 | G132: =VLOOKUP(C132,'School Fee Structure'!$B$5:$H$79,5,FALSE) -> 1000 | H132: =VLOOKUP(C132,'School Fee Structure'!$B$5:$H$79,6,FALSE) -> 1000 | I132: =VLOOKUP(C132,'School Fee Structure'!$B$5:$H$79,7,FALSE) -> 1000 | J132: =VLOOKUP(C132,'School Fee Structure'!$B$5:$H$79,2,FALSE) -> 20000 | K132: 15000 | L132: 0 | M132: 0 | N132: 0 | S132: =SUM(K132:R132) -> 15000 | T132: =J132-S132 -> 5000
B133: AIS131 | C133: Nursery - C | D133: Emma | E133: =VLOOKUP(C133,'School Fee Structure'!$B$5:$H$79,3,FALSE) -> 12000 | F133: =VLOOKUP(C133,'School Fee Structure'!$B$5:$H$79,4,FALSE) -> 5000 | G133: =VLOOKUP(C133,'School Fee Structure'!$B$5:$H$79,5,FALSE) -> 1000 | H133: =VLOOKUP(C133,'School Fee Structure'!$B$5:$H$79,6,FALSE) -> 1000 | I133: =VLOOKUP(C133,'School Fee Structure'!$B$5:$H$79,7,FALSE) -> 1000 | J133: =VLOOKUP(C133,'School Fee Structure'!$B$5:$H$79,2,FALSE) -> 20000 | K133: 5000 | M133: 5000 | S133: 10000 | T133: 10000
B134: AIS132 | C134: Nursery - C | D134: Firoz | E134: =VLOOKUP(C134,'School Fee Structure'!$B$5:$H$79,3,FALSE) -> 12000 | F134: =VLOOKUP(C134,'School Fee Structure'!$B$5:$H$79,4,FALSE) -> 5000 | G134: =VLOOKUP(C134,'School Fee Structure'!$B$5:$H$79,5,FALSE) -> 1000 | H134: =VLOOKUP(C134,'School Fee Structure'!$B$5:$H$79,6,FALSE) -> 1000 | I134: =VLOOKUP(C134,'School Fee Structure'!$B$5:$H$79,7,FALSE) -> 1000 | J134: =VLOOKUP(C134,'School Fee Structure'!$B$5:$H$79,2,FALSE) -> 20000 | K134: 2500 | L134: 2500 | M134: 2500 | N134: 2500 | S134: 10000 | T134: 10000
B135: AIS133 | C135: Nursery - C | D135: Gitesh | E135: =VLOOKUP(C135,'School Fee Structure'!$B$5:$H$79,3,FALSE) -> 12000 | F135: =VLOOKUP(C135,'School Fee Structure'!$B$5:$H$79,4,FALSE) -> 5000 | G135: =VLOOKUP(C135,'School Fee Structure'!$B$5:$H$79,5,FALSE) -> 1000 | H135: =VLOOKUP(C135,'School Fee Structure'!$B$5:$H$79,6,FALSE) -> 1000 | I135: =VLOOKUP(C135,'School Fee Structure'!$B$5:$H$79,7,FALSE) -> 1000 | J135: =VLOOKUP(C135,'School Fee Structure'!$B$5:$H$79,2,FALSE) -> 20000 | K135: 20000 | L135: 0 | M135: 0 | N135: 0 | S135: 20000 | T135: 0
B136: AIS134 | C136: Nursery - C | D136: Hitesh | E136: =VLOOKUP(C136,'School Fee Structure'!$B$5:$H$79,3,FALSE) -> 12000 | F136: =VLOOKUP(C136,'School Fee Structure'!$B$5:$H$79,4,FALSE) -> 5000 | G136: =VLOOKUP(C136,'School Fee Structure'!$B$5:$H$79,5,FALSE) -> 1000 | H136: =VLOOKUP(C136,'School Fee Structure'!$B$5:$H$79,6,FALSE) -> 1000 | I136: =VLOOKUP(C136,'School Fee Structure'!$B$5:$H$79,7,FALSE) -> 1000 | J136: =VLOOKUP(C136,'School Fee Structure'!$B$5:$H$79,2,FALSE) -> 20000 | K136: 10000 | L136: 0 | M136: 5000 | N136: 0 | S136: 15000 | T136: 5000
B137: AIS135 | C137: Nursery - C | D137: Ismail | E137: =VLOOKUP(C137,'School Fee Structure'!$B$5:$H$79,3,FALSE) -> 12000 | F137: =VLOOKUP(C137,'School Fee Structure'!$B$5:$H$79,4,FALSE) -> 5000 | G137: =VLOOKUP(C137,'School Fee Structure'!$B$5:$H$79,5,FALSE) -> 1000 | H137: =VLOOKUP(C137,'School Fee Structure'!$B$5:$H$79,6,FALSE) -> 1000 | I137: =VLOOKUP(C137,'School Fee Structure'!$B$5:$H$79,7,FALSE) -> 1000 | J137: =VLOOKUP(C137,'School Fee Structure'!$B$5:$H$79,2,FALSE) -> 20000 | K137: 15000 | L137: 0 | M137: 0 | N137: 0 | S137: 15000 | T137: 5000
B138: AIS136 | C138: Nursery - C | D138: Kalyan | E138: =VLOOKUP(C138,'School Fee Structure'!$B$5:$H$79,3,FALSE) -> 12000 | F138: =VLOOKUP(C138,'School Fee Structure'!$B$5:$H$79,4,FALSE) -> 5000 | G138: =VLOOKUP(C138,'School Fee Structure'!$B$5:$H$79,5,FALSE) -> 1000 | H138: =VLOOKUP(C138,'School Fee Structure'!$B$5:$H$79,6,FALSE) -> 1000 | I138: =VLOOKUP(C138,'School Fee Structure'!$B$5:$H$79,7,FALSE) -> 1000 | J138: =VLOOKUP(C138,'School Fee Structure'!$B$5:$H$79,2,FALSE) -> 20000 | K138: 5000 | M138: 5000 | S138: 10000 | T138: 10000
B139: AIS137 | C139: Nursery - C | D139: Lallan | E139: =VLOOKUP(C139,'School Fee Structure'!$B$5:$H$79,3,FALSE) -> 12000 | F139: =VLOOKUP(C139,'School Fee Structure'!$B$5:$H$79,4,FALSE) -> 5000 | G139: =VLOOKUP(C139,'School Fee Structure'!$B$5:$H$79,5,FALSE) -> 1000 | H139: =VLOOKUP(C139,'School Fee Structure'!$B$5:$H$79,6,FALSE) -> 1000 | I139: =VLOOKUP(C139,'School Fee Structure'!$B$5:$H$79,7,FALSE) -> 1000 | J139: =VLOOKUP(C139,'School Fee Structure'!$B$5:$H$79,2,FALSE) -> 20000 | K139: 2500 | L139: 2500 | M139: 2500 | N139: 2500 | S139: 10000 | T139: 10000
B140: AIS138 | C140: Nursery - C | D140: Minakshi | E140: =VLOOKUP(C140,'School Fee Structure'!$B$5:$H$79,3,FALSE) -> 12000 | F140: =VLOOKUP(C140,'School Fee Structure'!$B$5:$H$79,4,FALSE) -> 5000 | G140: =VLOOKUP(C140,'School Fee Structure'!$B$5:$H$79,5,FALSE) -> 1000 | H140: =VLOOKUP(C140,'School Fee Structure'!$B$5:$H$79,6,FALSE) -> 1000 | I140: =VLOOKUP(C140,'School Fee Structure'!$B$5:$H$79,7,FALSE) -> 1000 | J140: =VLOOKUP(C140,'School Fee Structure'!$B$5:$H$79,2,FALSE) -> 20000 | K140: 20000 | L140: 0 | M140: 0 | N140: 0 | S140: 20000 | T140: 0
B141: AIS139 | C141: Nursery - C | D141: Naitik | E141: =VLOOKUP(C141,'School Fee Structure'!$B$5:$H$79,3,FALSE) -> 12000 | F141: =VLOOKUP(C141,'School Fee Structure'!$B$5:$H$79,4,FALSE) -> 5000 | G141: =VLOOKUP(C141,'School Fee Structure'!$B$5:$H$79,5,FALSE) -> 1000 | H141: =VLOOKUP(C141,'School Fee Structure'!$B$5:$H$79,6,FALSE) -> 1000 | I141: =VLOOKUP(C141,'School Fee Structure'!$B$5:$H$79,7,FALSE) -> 1000 | J141: =VLOOKUP(C141,'School Fee Structure'!$B$5:$H$79,2,FALSE) -> 20000 | K141: 10000 | L141: 0 | M141: 5000 | N141: 0 | S141: 15000 | T141: 5000
B142: AIS140 | C142: Nursery - C | D142: Owais | E142: =VLOOKUP(C142,'School Fee Structure'!$B$5:$H$79,3,FALSE) -> 12000 | F142: =VLOOKUP(C142,'School Fee Structure'!$B$5:$H$79,4,FALSE) -> 5000 | G142: =VLOOKUP(C142,'School Fee Structure'!$B$5:$H$79,5,FALSE) -> 1000 | H142: =VLOOKUP(C142,'School Fee Structure'!$B$5:$H$79,6,FALSE) -> 1000 | I142: =VLOOKUP(C142,'School Fee Structure'!$B$5:$H$79,7,FALSE) -> 1000 | J142: =VLOOKUP(C142,'School Fee Structure'!$B$5:$H$79,2,FALSE) -> 20000 | K142: 15000 | L142: 0 | M142: 0 | N142: 0 | S142: 15000 | T142: 5000
B143: AIS141 | C143: Nursery - C | D143: Pinal | E143: =VLOOKUP(C143,'School Fee Structure'!$B$5:$H$79,3,FALSE) -> 12000 | F143: =VLOOKUP(C143,'School Fee Structure'!$B$5:$H$79,4,FALSE) -> 5000 | G143: =VLOOKUP(C143,'School Fee Structure'!$B$5:$H$79,5,FALSE) -> 1000 | H143: =VLOOKUP(C143,'School Fee Structure'!$B$5:$H$79,6,FALSE) -> 1000 | I143: =VLOOKUP(C143,'School Fee Structure'!$B$5:$H$79,7,FALSE) -> 1000 | J143: =VLOOKUP(C143,'School Fee Structure'!$B$5:$H$79,2,FALSE) -> 20000 | K143: 5000 | M143: 5000 | S143: 10000 | T143: 10000
B144: AIS142 | C144: Nursery - C | D144: Qamar | E144: =VLOOKUP(C144,'School Fee Structure'!$B$5:$H$79,3,FALSE) -> 12000 | F144: =VLOOKUP(C144,'School Fee Structure'!$B$5:$H$79,4,FALSE) -> 5000 | G144: =VLOOKUP(C144,'School Fee Structure'!$B$5:$H$79,5,FALSE) -> 1000 | H144: =VLOOKUP(C144,'School Fee Structure'!$B$5:$H$79,6,FALSE) -> 1000 | I144: =VLOOKUP(C144,'School Fee Structure'!$B$5:$H$79,7,FALSE) -> 1000 | J144: =VLOOKUP(C144,'School Fee Structure'!$B$5:$H$79,2,FALSE) -> 20000 | K144: 2500 | L144: 2500 | M144: 2500 | N144: 2500 | S144: 10000 | T144: 10000
B145: AIS143 | C145: Nursery - C | D145: Rahim | E145: =VLOOKUP(C145,'School Fee Structure'!$B$5:$H$79,3,FALSE) -> 12000 | F145: =VLOOKUP(C145,'School Fee Structure'!$B$5:$H$79,4,FALSE) -> 5000 | G145: =VLOOKUP(C145,'School Fee Structure'!$B$5:$H$79,5,FALSE) -> 1000 | H145: =VLOOKUP(C145,'School Fee Structure'!$B$5:$H$79,6,FALSE) -> 1000 | I145: =VLOOKUP(C145,'School Fee Structure'!$B$5:$H$79,7,FALSE) -> 1000 | J145: =VLOOKUP(C145,'School Fee Structure'!$B$5:$H$79,2,FALSE) -> 20000 | K145: 20000 | L145: 0 | M145: 0 | N145: 0 | S145: 20000 | T145: 0
B146: AIS144 | C146: Nursery - C | D146: Sunder | E146: =VLOOKUP(C146,'School Fee Structure'!$B$5:$H$79,3,FALSE) -> 12000 | F146: =VLOOKUP(C146,'School Fee Structure'!$B$5:$H$79,4,FALSE) -> 5000 | G146: =VLOOKUP(C146,'School Fee Structure'!$B$5:$H$79,5,FALSE) -> 1000 | H146: =VLOOKUP(C146,'School Fee Structure'!$B$5:$H$79,6,FALSE) -> 1000 | I146: =VLOOKUP(C146,'School Fee Structure'!$B$5:$H$79,7,FALSE) -> 1000 | J146: =VLOOKUP(C146,'School Fee Structure'!$B$5:$H$79,2,FALSE) -> 20000 | K146: 10000 | L146: 0 | M146: 5000 | N146: 0 | S146: 15000 | T146: 5000
B147: AIS145 | C147: Nursery - C | D147: Tahir | E147: =VLOOKUP(C147,'School Fee Structure'!$B$5:$H$79,3,FALSE) -> 12000 | F147: =VLOOKUP(C147,'School Fee Structure'!$B$5:$H$79,4,FALSE) -> 5000 | G147: =VLOOKUP(C147,'School Fee Structure'!$B$5:$H$79,5,FALSE) -> 1000 | H147: =VLOOKUP(C147,'School Fee Structure'!$B$5:$H$79,6,FALSE) -> 1000 | I147: =VLOOKUP(C147,'School Fee Structure'!$B$5:$H$79,7,FALSE) -> 1000 | J147: =VLOOKUP(C147,'School Fee Structure'!$B$5:$H$79,2,FALSE) -> 20000 | K147: 15000 | L147: 0 | M147: 0 | N147: 0 | S147: 15000 | T147: 5000
B148: AIS146 | C148: Nursery - C | D148: Umar | E148: =VLOOKUP(C148,'School Fee Structure'!$B$5:$H$79,3,FALSE) -> 12000 | F148: =VLOOKUP(C148,'School Fee Structure'!$B$5:$H$79,4,FALSE) -> 5000 | G148: =VLOOKUP(C148,'School Fee Structure'!$B$5:$H$79,5,FALSE) -> 1000 | H148: =VLOOKUP(C148,'School Fee Structure'!$B$5:$H$79,6,FALSE) -> 1000 | I148: =VLOOKUP(C148,'School Fee Structure'!$B$5:$H$79,7,FALSE) -> 1000 | J148: =VLOOKUP(C148,'School Fee Structure'!$B$5:$H$79,2,FALSE) -> 20000 | K148: 5000 | M148: 5000 | S148: 10000 | T148: 10000
B149: AIS147 | C149: Nursery - C | D149: Vishal | E149: =VLOOKUP(C149,'School Fee Structure'!$B$5:$H$79,3,FALSE) -> 12000 | F149: =VLOOKUP(C149,'School Fee Structure'!$B$5:$H$79,4,FALSE) -> 5000 | G149: =VLOOKUP(C149,'School Fee Structure'!$B$5:$H$79,5,FALSE) -> 1000 | H149: =VLOOKUP(C149,'School Fee Structure'!$B$5:$H$79,6,FALSE) -> 1000 | I149: =VLOOKUP(C149,'School Fee Structure'!$B$5:$H$79,7,FALSE) -> 1000 | J149: =VLOOKUP(C149,'School Fee Structure'!$B$5:$H$79,2,FALSE) -> 20000 | K149: 2500 | L149: 2500 | M149: 2500 | N149: 2500 | S149: 10000 | T149: 10000
B150: AIS148 | C150: Nursery - C | D150: Wafa | E150: =VLOOKUP(C150,'School Fee Structure'!$B$5:$H$79,3,FALSE) -> 12000 | F150: =VLOOKUP(C150,'School Fee Structure'!$B$5:$H$79,4,FALSE) -> 5000 | G150: =VLOOKUP(C150,'School Fee Structure'!$B$5:$H$79,5,FALSE) -> 1000 | H150: =VLOOKUP(C150,'School Fee Structure'!$B$5:$H$79,6,FALSE) -> 1000 | I150: =VLOOKUP(C150,'School Fee Structure'!$B$5:$H$79,7,FALSE) -> 1000 | J150: =VLOOKUP(C150,'School Fee Structure'!$B$5:$H$79,2,FALSE) -> 20000 | K150: 20000 | L150: 0 | M150: 0 | N150: 0 | S150: 20000 | T150: 0
B151: AIS149 | C151: Nursery - C | D151: Xolo | E151: =VLOOKUP(C151,'School Fee Structure'!$B$5:$H$79,3,FALSE) -> 12000 | F151: =VLOOKUP(C151,'School Fee Structure'!$B$5:$H$79,4,FALSE) -> 5000 | G151: =VLOOKUP(C151,'School Fee Structure'!$B$5:$H$79,5,FALSE) -> 1000 | H151: =VLOOKUP(C151,'School Fee Structure'!$B$5:$H$79,6,FALSE) -> 1000 | I151: =VLOOKUP(C151,'School Fee Structure'!$B$5:$H$79,7,FALSE) -> 1000 | J151: =VLOOKUP(C151,'School Fee Structure'!$B$5:$H$79,2,FALSE) -> 20000 | K151: 10000 | L151: 0 | M151: 5000 | N151: 0 | S151: 15000 | T151: 5000
B152: AIS150 | C152: Nursery - C | D152: Zahid | E152: =VLOOKUP(C152,'School Fee Structure'!$B$5:$H$79,3,FALSE) -> 12000 | F152: =VLOOKUP(C152,'School Fee Structure'!$B$5:$H$79,4,FALSE) -> 5000 | G152: =VLOOKUP(C152,'School Fee Structure'!$B$5:$H$79,5,FALSE) -> 1000 | H152: =VLOOKUP(C152,'School Fee Structure'!$B$5:$H$79,6,FALSE) -> 1000 | I152: =VLOOKUP(C152,'School Fee Structure'!$B$5:$H$79,7,FALSE) -> 1000 | J152: =VLOOKUP(C152,'School Fee Structure'!$B$5:$H$79,2,FALSE) -> 20000 | K152: 15000 | L152: 0 | M152: 0 | N152: 0 | S152: 15000 | T152: 5000
B153: AIS151 | C153: Nursery - D | D153: Albert | E153: =VLOOKUP(C153,'School Fee Structure'!$B$5:$H$79,3,FALSE) -> 12000 | F153: =VLOOKUP(C153,'School Fee Structure'!$B$5:$H$79,4,FALSE) -> 5000 | G153: =VLOOKUP(C153,'School Fee Structure'!$B$5:$H$79,5,FALSE) -> 1000 | H153: =VLOOKUP(C153,'School Fee Structure'!$B$5:$H$79,6,FALSE) -> 1000 | I153: =VLOOKUP(C153,'School Fee Structure'!$B$5:$H$79,7,FALSE) -> 1000 | J153: =VLOOKUP(C153,'School Fee Structure'!$B$5:$H$79,2,FALSE) -> 20000 | K153: 5000 | M153: 5000 | S153: 10000 | T153: 10000
B154: AIS152 | C154: Nursery - D | D154: Benjamin | E154: =VLOOKUP(C154,'School Fee Structure'!$B$5:$H$79,3,FALSE) -> 12000 | F154: =VLOOKUP(C154,'School Fee Structure'!$B$5:$H$79,4,FALSE) -> 5000 | G154: =VLOOKUP(C154,'School Fee Structure'!$B$5:$H$79,5,FALSE) -> 1000 | H154: =VLOOKUP(C154,'School Fee Structure'!$B$5:$H$79,6,FALSE) -> 1000 | I154: =VLOOKUP(C154,'School Fee Structure'!$B$5:$H$79,7,FALSE) -> 1000 | J154: =VLOOKUP(C154,'School Fee Structure'!$B$5:$H$79,2,FALSE) -> 20000 | K154: 2500 | L154: 2500 | M154: 2500 | N154: 2500 | S154: 10000 | T154: 10000
B155: AIS153 | C155: Nursery - D | D155: Clara | E155: =VLOOKUP(C155,'School Fee Structure'!$B$5:$H$79,3,FALSE) -> 12000 | F155: =VLOOKUP(C155,'School Fee Structure'!$B$5:$H$79,4,FALSE) -> 5000 | G155: =VLOOKUP(C155,'School Fee Structure'!$B$5:$H$79,5,FALSE) -> 1000 | H155: =VLOOKUP(C155,'School Fee Structure'!$B$5:$H$79,6,FALSE) -> 1000 | I155: =VLOOKUP(C155,'School Fee Structure'!$B$5:$H$79,7,FALSE) -> 1000 | J155: =VLOOKUP(C155,'School Fee Structure'!$B$5:$H$79,2,FALSE) -> 20000 | K155: 20000 | L155: 0 | M155: 0 | N155: 0 | S155: 20000 | T155: 0
B156: AIS154 | C156: Nursery - D | D156: Dany | E156: =VLOOKUP(C156,'School Fee Structure'!$B$5:$H$79,3,FALSE) -> 12000 | F156: =VLOOKUP(C156,'School Fee Structure'!$B$5:$H$79,4,FALSE) -> 5000 | G156: =VLOOKUP(C156,'School Fee Structure'!$B$5:$H$79,5,FALSE) -> 1000 | H156: =VLOOKUP(C156,'School Fee Structure'!$B$5:$H$79,6,FALSE) -> 1000 | I156: =VLOOKUP(C156,'School Fee Structure'!$B$5:$H$79,7,FALSE) -> 1000 | J156: =VLOOKUP(C156,'School Fee Structure'!$B$5:$H$79,2,FALSE) -> 20000 | K156: 10000 | L156: 0 | M156: 5000 | N156: 0 | S156: 15000 | T156: 5000
B157: AIS155 | C157: Nursery - D | D157: Emanuel | E157: =VLOOKUP(C157,'School Fee Structure'!$B$5:$H$79,3,FALSE) -> 12000 | F157: =VLOOKUP(C157,'School Fee Structure'!$B$5:$H$79,4,FALSE) -> 5000 | G157: =VLOOKUP(C157,'School Fee Structure'!$B$5:$H$79,5,FALSE) -> 1000 | H157: =VLOOKUP(C157,'School Fee Structure'!$B$5:$H$79,6,FALSE) -> 1000 | I157: =VLOOKUP(C157,'School Fee Structure'!$B$5:$H$79,7,FALSE) -> 1000 | J157: =VLOOKUP(C157,'School Fee Structure'!$B$5:$H$79,2,FALSE) -> 20000 | K157: 15000 | L157: 0 | M157: 0 | N157: 0 | S157: 15000 | T157: 5000
B158: AIS156 | C158: Nursery - D | D158: Fedrick | E158: =VLOOKUP(C158,'School Fee Structure'!$B$5:$H$79,3,FALSE) -> 12000 | F158: =VLOOKUP(C158,'School Fee Structure'!$B$5:$H$79,4,FALSE) -> 5000 | G158: =VLOOKUP(C158,'School Fee Structure'!$B$5:$H$79,5,FALSE) -> 1000 | H158: =VLOOKUP(C158,'School Fee Structure'!$B$5:$H$79,6,FALSE) -> 1000 | I158: =VLOOKUP(C158,'School Fee Structure'!$B$5:$H$79,7,FALSE) -> 1000 | J158: =VLOOKUP(C158,'School Fee Structure'!$B$5:$H$79,2,FALSE) -> 20000 | K158: 5000 | M158: 5000 | S158: 10000 | T158: 10000
B159: AIS157 | C159: Nursery - D | D159: Gavin | E159: =VLOOKUP(C159,'School Fee Structure'!$B$5:$H$79,3,FALSE) -> 12000 | F159: =VLOOKUP(C159,'School Fee Structure'!$B$5:$H$79,4,FALSE) -> 5000 | G159: =VLOOKUP(C159,'School Fee Structure'!$B$5:$H$79,5,FALSE) -> 1000 | H159: =VLOOKUP(C159,'School Fee Structure'!$B$5:$H$79,6,FALSE) -> 1000 | I159: =VLOOKUP(C159,'School Fee Structure'!$B$5:$H$79,7,FALSE) -> 1000 | J159: =VLOOKUP(C159,'School Fee Structure'!$B$5:$H$79,2,FALSE) -> 20000 | K159: 2500 | L159: 2500 | M159: 2500 | N159: 2500 | S159: 10000 | T159: 10000
B160: AIS158 | C160: Nursery - D | D160: Hayden | E160: =VLOOKUP(C160,'School Fee Structure'!$B$5:$H$79,3,FALSE) -> 12000 | F160: =VLOOKUP(C160,'School Fee Structure'!$B$5:$H$79,4,FALSE) -> 5000 | G160: =VLOOKUP(C160,'School Fee Structure'!$B$5:$H$79,5,FALSE) -> 1000 | H160: =VLOOKUP(C160,'School Fee Structure'!$B$5:$H$79,6,FALSE) -> 1000 | I160: =VLOOKUP(C160,'School Fee Structure'!$B$5:$H$79,7,FALSE) -> 1000 | J160: =VLOOKUP(C160,'School Fee Structure'!$B$5:$H$79,2,FALSE) -> 20000 | K160: 20000 | L160: 0 | M160: 0 | N160: 0 | S160: 20000 | T160: 0
B161: AIS159 | C161: Nursery - D | D161: Ian | E161: =VLOOKUP(C161,'School Fee Structure'!$B$5:$H$79,3,FALSE) -> 12000 | F161: =VLOOKUP(C161,'School Fee Structure'!$B$5:$H$79,4,FALSE) -> 5000 | G161: =VLOOKUP(C161,'School Fee Structure'!$B$5:$H$79,5,FALSE) -> 1000 | H161: =VLOOKUP(C161,'School Fee Structure'!$B$5:$H$79,6,FALSE) -> 1000 | I161: =VLOOKUP(C161,'School Fee Structure'!$B$5:$H$79,7,FALSE) -> 1000 | J161: =VLOOKUP(C161,'School Fee Structure'!$B$5:$H$79,2,FALSE) -> 20000 | K161: 10000 | L161: 0 | M161: 5000 | N161: 0 | S161: 15000 | T161: 5000
B162: AIS160 | C162: Nursery - D | D162: Jacob | E162: =VLOOKUP(C162,'School Fee Structure'!$B$5:$H$79,3,FALSE) -> 12000 | F162: =VLOOKUP(C162,'School Fee Structure'!$B$5:$H$79,4,FALSE) -> 5000 | G162: =VLOOKUP(C162,'School Fee Structure'!$B$5:$H$79,5,FALSE) -> 1000 | H162: =VLOOKUP(C162,'School Fee Structure'!$B$5:$H$79,6,FALSE) -> 1000 | I162: =VLOOKUP(C162,'School Fee Structure'!$B$5:$H$79,7,FALSE) -> 1000 | J162: =VLOOKUP(C162,'School Fee Structure'!$B$5:$H$79,2,FALSE) -> 20000 | K162: 15000 | L162: 0 | M162: 0 | N162: 0 | S162: 15000 | T162: 5000
B163: AIS161 | C163: Nursery - D | D163: Katy | E163: =VLOOKUP(C163,'School Fee Structure'!$B$5:$H$79,3,FALSE) -> 12000 | F163: =VLOOKUP(C163,'School Fee Structure'!$B$5:$H$79,4,FALSE) -> 5000 | G163: =VLOOKUP(C163,'School Fee Structure'!$B$5:$H$79,5,FALSE) -> 1000 | H163: =VLOOKUP(C163,'School Fee Structure'!$B$5:$H$79,6,FALSE) -> 1000 | I163: =VLOOKUP(C163,'School Fee Structure'!$B$5:$H$79,7,FALSE) -> 1000 | J163: =VLOOKUP(C163,'School Fee Structure'!$B$5:$H$79,2,FALSE) -> 20000 | K163: 5000 | M163: 5000 | S163: 10000 | T163: 10000
B164: AIS162 | C164: Nursery - D | D164: Lorel | E164: =VLOOKUP(C164,'School Fee Structure'!$B$5:$H$79,3,FALSE) -> 12000 | F164: =VLOOKUP(C164,'School Fee Structure'!$B$5:$H$79,4,FALSE) -> 5000 | G164: =VLOOKUP(C164,'School Fee Structure'!$B$5:$H$79,5,FALSE) -> 1000 | H164: =VLOOKUP(C164,'School Fee Structure'!$B$5:$H$79,6,FALSE) -> 1000 | I164: =VLOOKUP(C164,'School Fee Structure'!$B$5:$H$79,7,FALSE) -> 1000 | J164: =VLOOKUP(C164,'School Fee Structure'!$B$5:$H$79,2,FALSE) -> 20000 | K164: 2500 | L164: 2500 | M164: 2500 | N164: 2500 | S164: 10000 | T164: 10000
B165: AIS163 | C165: Nursery - D | D165: Mona | E165: =VLOOKUP(C165,'School Fee Structure'!$B$5:$H$79,3,FALSE) -> 12000 | F165: =VLOOKUP(C165,'School Fee Structure'!$B$5:$H$79,4,FALSE) -> 5000 | G165: =VLOOKUP(C165,'School Fee Structure'!$B$5:$H$79,5,FALSE) -> 1000 | H165: =VLOOKUP(C165,'School Fee Structure'!$B$5:$H$79,6,FALSE) -> 1000 | I165: =VLOOKUP(C165,'School Fee Structure'!$B$5:$H$79,7,FALSE) -> 1000 | J165: =VLOOKUP(C165,'School Fee Structure'!$B$5:$H$79,2,FALSE) -> 20000 | K165: 20000 | L165: 0 | M165: 0 | N165: 0 | S165: 20000 | T165: 0
B166: AIS164 | C166: Nursery - D | D166: Nancy | E166: =VLOOKUP(C166,'School Fee Structure'!$B$5:$H$79,3,FALSE) -> 12000 | F166: =VLOOKUP(C166,'School Fee Structure'!$B$5:$H$79,4,FALSE) -> 5000 | G166: =VLOOKUP(C166,'School Fee Structure'!$B$5:$H$79,5,FALSE) -> 1000 | H166: =VLOOKUP(C166,'School Fee Structure'!$B$5:$H$79,6,FALSE) -> 1000 | I166: =VLOOKUP(C166,'School Fee Structure'!$B$5:$H$79,7,FALSE) -> 1000 | J166: =VLOOKUP(C166,'School Fee Structure'!$B$5:$H$79,2,FALSE) -> 20000 | K166: 10000 | L166: 0 | M166: 5000 | N166: 0 | S166: 15000 | T166: 5000
B167: AIS165 | C167: Nursery - D | D167: Opera | E167: =VLOOKUP(C167,'School Fee Structure'!$B$5:$H$79,3,FALSE) -> 12000 | F167: =VLOOKUP(C167,'School Fee Structure'!$B$5:$H$79,4,FALSE) -> 5000 | G167: =VLOOKUP(C167,'School Fee Structure'!$B$5:$H$79,5,FALSE) -> 1000 | H167: =VLOOKUP(C167,'School Fee Structure'!$B$5:$H$79,6,FALSE) -> 1000 | I167: =VLOOKUP(C167,'School Fee Structure'!$B$5:$H$79,7,FALSE) -> 1000 | J167: =VLOOKUP(C167,'School Fee Structure'!$B$5:$H$79,2,FALSE) -> 20000 | K167: 15000 | L167: 0 | M167: 0 | N167: 0 | S167: 15000 | T167: 5000
B168: AIS166 | C168: Nursery - D | D168: Queen | E168: =VLOOKUP(C168,'School Fee Structure'!$B$5:$H$79,3,FALSE) -> 12000 | F168: =VLOOKUP(C168,'School Fee Structure'!$B$5:$H$79,4,FALSE) -> 5000 | G168: =VLOOKUP(C168,'School Fee Structure'!$B$5:$H$79,5,FALSE) -> 1000 | H168: =VLOOKUP(C168,'School Fee Structure'!$B$5:$H$79,6,FALSE) -> 1000 | I168: =VLOOKUP(C168,'School Fee Structure'!$B$5:$H$79,7,FALSE) -> 1000 | J168: =VLOOKUP(C168,'School Fee Structure'!$B$5:$H$79,2,FALSE) -> 20000 | K168: 5000 | M168: 5000 | S168: 10000 | T168: 10000
B169: AIS167 | C169: Nursery - D | D169: Patrick | E169: =VLOOKUP(C169,'School Fee Structure'!$B$5:$H$79,3,FALSE) -> 12000 | F169: =VLOOKUP(C169,'School Fee Structure'!$B$5:$H$79,4,FALSE) -> 5000 | G169: =VLOOKUP(C169,'School Fee Structure'!$B$5:$H$79,5,FALSE) -> 1000 | H169: =VLOOKUP(C169,'School Fee Structure'!$B$5:$H$79,6,FALSE) -> 1000 | I169: =VLOOKUP(C169,'School Fee Structure'!$B$5:$H$79,7,FALSE) -> 1000 | J169: =VLOOKUP(C169,'School Fee Structure'!$B$5:$H$79,2,FALSE) -> 20000 | K169: 2500 | L169: 2500 | M169: 2500 | N169: 2500 | S169: 10000 | T169: 10000
B170: AIS168 | C170: Nursery - D | D170: Roger | E170: =VLOOKUP(C170,'School Fee Structure'!$B$5:$H$79,3,FALSE) -> 12000 | F170: =VLOOKUP(C170,'School Fee Structure'!$B$5:$H$79,4,FALSE) -> 5000 | G170: =VLOOKUP(C170,'School Fee Structure'!$B$5:$H$79,5,FALSE) -> 1000 | H170: =VLOOKUP(C170,'School Fee Structure'!$B$5:$H$79,6,FALSE) -> 1000 | I170: =VLOOKUP(C170,'School Fee Structure'!$B$5:$H$79,7,FALSE) -> 1000 | J170: =VLOOKUP(C170,'School Fee Structure'!$B$5:$H$79,2,FALSE) -> 20000 | K170: 20000 | L170: 0 | M170: 0 | N170: 0 | S170: 20000 | T170: 0
B171: AIS169 | C171: Nursery - D | D171: Samuel | E171: =VLOOKUP(C171,'School Fee Structure'!$B$5:$H$79,3,FALSE) -> 12000 | F171: =VLOOKUP(C171,'School Fee Structure'!$B$5:$H$79,4,FALSE) -> 5000 | G171: =VLOOKUP(C171,'School Fee Structure'!$B$5:$H$79,5,FALSE) -> 1000 | H171: =VLOOKUP(C171,'School Fee Structure'!$B$5:$H$79,6,FALSE) -> 1000 | I171: =VLOOKUP(C171,'School Fee Structure'!$B$5:$H$79,7,FALSE) -> 1000 | J171: =VLOOKUP(C171,'School Fee Structure'!$B$5:$H$79,2,FALSE) -> 20000 | K171: 10000 | L171: 0 | M171: 5000 | N171: 0 | S171: 15000 | T171: 5000
B172: AIS170 | C172: Nursery - D | D172: Tina | E172: =VLOOKUP(C172,'School Fee Structure'!$B$5:$H$79,3,FALSE) -> 12000 | F172: =VLOOKUP(C172,'School Fee Structure'!$B$5:$H$79,4,FALSE) -> 5000 | G172: =VLOOKUP(C172,'School Fee Structure'!$B$5:$H$79,5,FALSE) -> 1000 | H172: =VLOOKUP(C172,'School Fee Structure'!$B$5:$H$79,6,FALSE) -> 1000 | I172: =VLOOKUP(C172,'School Fee Structure'!$B$5:$H$79,7,FALSE) -> 1000 | J172: =VLOOKUP(C172,'School Fee Structure'!$B$5:$H$79,2,FALSE) -> 20000 | K172: 15000 | L172: 0 | M172: 0 | N172: 0 | S172: 15000 | T172: 5000
B173: AIS171 | C173: Nursery - D | D173: Usher | E173: =VLOOKUP(C173,'School Fee Structure'!$B$5:$H$79,3,FALSE) -> 12000 | F173: =VLOOKUP(C173,'School Fee Structure'!$B$5:$H$79,4,FALSE) -> 5000 | G173: =VLOOKUP(C173,'School Fee Structure'!$B$5:$H$79,5,FALSE) -> 1000 | H173: =VLOOKUP(C173,'School Fee Structure'!$B$5:$H$79,6,FALSE) -> 1000 | I173: =VLOOKUP(C173,'School Fee Structure'!$B$5:$H$79,7,FALSE) -> 1000 | J173: =VLOOKUP(C173,'School Fee Structure'!$B$5:$H$79,2,FALSE) -> 20000 | K173: 5000 | M173: 5000 | S173: 10000 | T173: 10000
B174: AIS172 | C174: Nursery - D | D174: Vian | E174: =VLOOKUP(C174,'School Fee Structure'!$B$5:$H$79,3,FALSE) -> 12000 | F174: =VLOOKUP(C174,'School Fee Structure'!$B$5:$H$79,4,FALSE) -> 5000 | G174: =VLOOKUP(C174,'School Fee Structure'!$B$5:$H$79,5,FALSE) -> 1000 | H174: =VLOOKUP(C174,'School Fee Structure'!$B$5:$H$79,6,FALSE) -> 1000 | I174: =VLOOKUP(C174,'School Fee Structure'!$B$5:$H$79,7,FALSE) -> 1000 | J174: =VLOOKUP(C174,'School Fee Structure'!$B$5:$H$79,2,FALSE) -> 20000 | K174: 2500 | L174: 2500 | M174: 2500 | N174: 2500 | S174: 10000 | T174: 10000
B175: AIS173 | C175: Nursery - D | D175: Walter | E175: =VLOOKUP(C175,'School Fee Structure'!$B$5:$H$79,3,FALSE) -> 12000 | F175: =VLOOKUP(C175,'School Fee Structure'!$B$5:$H$79,4,FALSE) -> 5000 | G175: =VLOOKUP(C175,'School Fee Structure'!$B$5:$H$79,5,FALSE) -> 1000 | H175: =VLOOKUP(C175,'School Fee Structure'!$B$5:$H$79,6,FALSE) -> 1000 | I175: =VLOOKUP(C175,'School Fee Structure'!$B$5:$H$79,7,FALSE) -> 1000 | J175: =VLOOKUP(C175,'School Fee Structure'!$B$5:$H$79,2,FALSE) -> 20000 | K175: 20000 | L175: 0 | M175: 0 | N175: 0 | S175: 20000 | T175: 0
B176: AIS174 | C176: Nursery - D | D176: Xian | E176: =VLOOKUP(C176,'School Fee Structure'!$B$5:$H$79,3,FALSE) -> 12000 | F176: =VLOOKUP(C176,'School Fee Structure'!$B$5:$H$79,4,FALSE) -> 5000 | G176: =VLOOKUP(C176,'School Fee Structure'!$B$5:$H$79,5,FALSE) -> 1000 | H176: =VLOOKUP(C176,'School Fee Structure'!$B$5:$H$79,6,FALSE) -> 1000 | I176: =VLOOKUP(C176,'School Fee Structure'!$B$5:$H$79,7,FALSE) -> 1000 | J176: =VLOOKUP(C176,'School Fee Structure'!$B$5:$H$79,2,FALSE) -> 20000 | K176: 10000 | L176: 0 | M176: 5000 | N176: 0 | S176: 15000 | T176: 5000
B177: AIS175 | C177: Nursery - D | D177: Yola | E177: =VLOOKUP(C177,'School Fee Structure'!$B$5:$H$79,3,FALSE) -> 12000 | F177: =VLOOKUP(C177,'School Fee Structure'!$B$5:$H$79,4,FALSE) -> 5000 | G177: =VLOOKUP(C177,'School Fee Structure'!$B$5:$H$79,5,FALSE) -> 1000 | H177: =VLOOKUP(C177,'School Fee Structure'!$B$5:$H$79,6,FALSE) -> 1000 | I177: =VLOOKUP(C177,'School Fee Structure'!$B$5:$H$79,7,FALSE) -> 1000 | J177: =VLOOKUP(C177,'School Fee Structure'!$B$5:$H$79,2,FALSE) -> 20000 | K177: 15000 | L177: 0 | M177: 0 | N177: 0 | S177: 15000 | T177: 5000
B178: AIS176 | C178: Nursery - D | D178: Zimmy | E178: =VLOOKUP(C178,'School Fee Structure'!$B$5:$H$79,3,FALSE) -> 12000 | F178: =VLOOKUP(C178,'School Fee Structure'!$B$5:$H$79,4,FALSE) -> 5000 | G178: =VLOOKUP(C178,'School Fee Structure'!$B$5:$H$79,5,FALSE) -> 1000 | H178: =VLOOKUP(C178,'School Fee Structure'!$B$5:$H$79,6,FALSE) -> 1000 | I178: =VLOOKUP(C178,'School Fee Structure'!$B$5:$H$79,7,FALSE) -> 1000 | J178: =VLOOKUP(C178,'School Fee Structure'!$B$5:$H$79,2,FALSE) -> 20000 | K178: 5000 | M178: 5000 | S178: 10000 | T178: 10000
B179: AIS177 | C179: Nursery - D | D179: Aman | E179: =VLOOKUP(C179,'School Fee Structure'!$B$5:$H$79,3,FALSE) -> 12000 | F179: =VLOOKUP(C179,'School Fee Structure'!$B$5:$H$79,4,FALSE) -> 5000 | G179: =VLOOKUP(C179,'School Fee Structure'!$B$5:$H$79,5,FALSE) -> 1000 | H179: =VLOOKUP(C179,'School Fee Structure'!$B$5:$H$79,6,FALSE) -> 1000 | I179: =VLOOKUP(C179,'School Fee Structure'!$B$5:$H$79,7,FALSE) -> 1000 | J179: =VLOOKUP(C179,'School Fee Structure'!$B$5:$H$79,2,FALSE) -> 20000 | K179: 2500 | L179: 2500 | M179: 2500 | N179: 2500 | S179: 10000 | T179: 10000
B180: AIS178 | C180: Nursery - D | D180: Bijal | E180: =VLOOKUP(C180,'School Fee Structure'!$B$5:$H$79,3,FALSE) -> 12000 | F180: =VLOOKUP(C180,'School Fee Structure'!$B$5:$H$79,4,FALSE) -> 5000 | G180: =VLOOKUP(C180,'School Fee Structure'!$B$5:$H$79,5,FALSE) -> 1000 | H180: =VLOOKUP(C180,'School Fee Structure'!$B$5:$H$79,6,FALSE) -> 1000 | I180: =VLOOKUP(C180,'School Fee Structure'!$B$5:$H$79,7,FALSE) -> 1000 | J180: =VLOOKUP(C180,'School Fee Structure'!$B$5:$H$79,2,FALSE) -> 20000 | K180: 20000 | L180: 0 | M180: 0 | N180: 0 | S180: 20000 | T180: 0
B181: AIS179 | C181: Nursery - D | D181: Chandra | E181: =VLOOKUP(C181,'School Fee Structure'!$B$5:$H$79,3,FALSE) -> 12000 | F181: =VLOOKUP(C181,'School Fee Structure'!$B$5:$H$79,4,FALSE) -> 5000 | G181: =VLOOKUP(C181,'School Fee Structure'!$B$5:$H$79,5,FALSE) -> 1000 | H181: =VLOOKUP(C181,'School Fee Structure'!$B$5:$H$79,6,FALSE) -> 1000 | I181: =VLOOKUP(C181,'School Fee Structure'!$B$5:$H$79,7,FALSE) -> 1000 | J181: =VLOOKUP(C181,'School Fee Structure'!$B$5:$H$79,2,FALSE) -> 20000 | K181: 10000 | L181: 0 | M181: 5000 | N181: 0 | S181: 15000 | T181: 5000
B182: AIS180 | C182: Nursery - D | D182: Danish | E182: =VLOOKUP(C182,'School Fee Structure'!$B$5:$H$79,3,FALSE) -> 12000 | F182: =VLOOKUP(C182,'School Fee Structure'!$B$5:$H$79,4,FALSE) -> 5000 | G182: =VLOOKUP(C182,'School Fee Structure'!$B$5:$H$79,5,FALSE) -> 1000 | H182: =VLOOKUP(C182,'School Fee Structure'!$B$5:$H$79,6,FALSE) -> 1000 | I182: =VLOOKUP(C182,'School Fee Structure'!$B$5:$H$79,7,FALSE) -> 1000 | J182: =VLOOKUP(C182,'School Fee Structure'!$B$5:$H$79,2,FALSE) -> 20000 | K182: 15000 | L182: 0 | M182: 0 | N182: 0 | S182: 15000 | T182: 5000
B183: AIS181 | C183: Nursery - D | D183: Emma | E183: =VLOOKUP(C183,'School Fee Structure'!$B$5:$H$79,3,FALSE) -> 12000 | F183: =VLOOKUP(C183,'School Fee Structure'!$B$5:$H$79,4,FALSE) -> 5000 | G183: =VLOOKUP(C183,'School Fee Structure'!$B$5:$H$79,5,FALSE) -> 1000 | H183: =VLOOKUP(C183,'School Fee Structure'!$B$5:$H$79,6,FALSE) -> 1000 | I183: =VLOOKUP(C183,'School Fee Structure'!$B$5:$H$79,7,FALSE) -> 1000 | J183: =VLOOKUP(C183,'School Fee Structure'!$B$5:$H$79,2,FALSE) -> 20000 | K183: 5000 | M183: 5000 | S183: 10000 | T183: 10000
B184: AIS182 | C184: Nursery - D | D184: Firoz | E184: =VLOOKUP(C184,'School Fee Structure'!$B$5:$H$79,3,FALSE) -> 12000 | F184: =VLOOKUP(C184,'School Fee Structure'!$B$5:$H$79,4,FALSE) -> 5000 | G184: =VLOOKUP(C184,'School Fee Structure'!$B$5:$H$79,5,FALSE) -> 1000 | H184: =VLOOKUP(C184,'School Fee Structure'!$B$5:$H$79,6,FALSE) -> 1000 | I184: =VLOOKUP(C184,'School Fee Structure'!$B$5:$H$79,7,FALSE) -> 1000 | J184: =VLOOKUP(C184,'School Fee Structure'!$B$5:$H$79,2,FALSE) -> 20000 | K184: 2500 | L184: 2500 | M184: 2500 | N184: 2500 | S184: 10000 | T184: 10000
B185: AIS183 | C185: Nursery - D | D185: Gitesh | E185: =VLOOKUP(C185,'School Fee Structure'!$B$5:$H$79,3,FALSE) -> 12000 | F185: =VLOOKUP(C185,'School Fee Structure'!$B$5:$H$79,4,FALSE) -> 5000 | G185: =VLOOKUP(C185,'School Fee Structure'!$B$5:$H$79,5,FALSE) -> 1000 | H185: =VLOOKUP(C185,'School Fee Structure'!$B$5:$H$79,6,FALSE) -> 1000 | I185: =VLOOKUP(C185,'School Fee Structure'!$B$5:$H$79,7,FALSE) -> 1000 | J185: =VLOOKUP(C185,'School Fee Structure'!$B$5:$H$79,2,FALSE) -> 20000 | K185: 20000 | L185: 0 | M185: 0 | N185: 0 | S185: 20000 | T185: 0
B186: AIS184 | C186: Nursery - D | D186: Hitesh | E186: =VLOOKUP(C186,'School Fee Structure'!$B$5:$H$79,3,FALSE) -> 12000 | F186: =VLOOKUP(C186,'School Fee Structure'!$B$5:$H$79,4,FALSE) -> 5000 | G186: =VLOOKUP(C186,'School Fee Structure'!$B$5:$H$79,5,FALSE) -> 1000 | H186: =VLOOKUP(C186,'School Fee Structure'!$B$5:$H$79,6,FALSE) -> 1000 | I186: =VLOOKUP(C186,'School Fee Structure'!$B$5:$H$79,7,FALSE) -> 1000 | J186: =VLOOKUP(C186,'School Fee Structure'!$B$5:$H$79,2,FALSE) -> 20000 | K186: 10000 | L186: 0 | M186: 5000 | N186: 0 | S186: 15000 | T186: 5000
B187: AIS185 | C187: Nursery - D | D187: Ismail | E187: =VLOOKUP(C187,'School Fee Structure'!$B$5:$H$79,3,FALSE) -> 12000 | F187: =VLOOKUP(C187,'School Fee Structure'!$B$5:$H$79,4,FALSE) -> 5000 | G187: =VLOOKUP(C187,'School Fee Structure'!$B$5:$H$79,5,FALSE) -> 1000 | H187: =VLOOKUP(C187,'School Fee Structure'!$B$5:$H$79,6,FALSE) -> 1000 | I187: =VLOOKUP(C187,'School Fee Structure'!$B$5:$H$79,7,FALSE) -> 1000 | J187: =VLOOKUP(C187,'School Fee Structure'!$B$5:$H$79,2,FALSE) -> 20000 | K187: 15000 | L187: 0 | M187: 0 | N187: 0 | S187: 15000 | T187: 5000
B188: AIS186 | C188: Nursery - D | D188: Kalyan | E188: =VLOOKUP(C188,'School Fee Structure'!$B$5:$H$79,3,FALSE) -> 12000 | F188: =VLOOKUP(C188,'School Fee Structure'!$B$5:$H$79,4,FALSE) -> 5000 | G188: =VLOOKUP(C188,'School Fee Structure'!$B$5:$H$79,5,FALSE) -> 1000 | H188: =VLOOKUP(C188,'School Fee Structure'!$B$5:$H$79,6,FALSE) -> 1000 | I188: =VLOOKUP(C188,'School Fee Structure'!$B$5:$H$79,7,FALSE) -> 1000 | J188: =VLOOKUP(C188,'School Fee Structure'!$B$5:$H$79,2,FALSE) -> 20000 | K188: 5000 | M188: 5000 | S188: 10000 | T188: 10000
B189: AIS187 | C189: Nursery - D | D189: Lallan | E189: =VLOOKUP(C189,'School Fee Structure'!$B$5:$H$79,3,FALSE) -> 12000 | F189: =VLOOKUP(C189,'School Fee Structure'!$B$5:$H$79,4,FALSE) -> 5000 | G189: =VLOOKUP(C189,'School Fee Structure'!$B$5:$H$79,5,FALSE) -> 1000 | H189: =VLOOKUP(C189,'School Fee Structure'!$B$5:$H$79,6,FALSE) -> 1000 | I189: =VLOOKUP(C189,'School Fee Structure'!$B$5:$H$79,7,FALSE) -> 1000 | J189: =VLOOKUP(C189,'School Fee Structure'!$B$5:$H$79,2,FALSE) -> 20000 | K189: 2500 | L189: 2500 | M189: 2500 | N189: 2500 | S189: 10000 | T189: 10000
B190: AIS188 | C190: Nursery - D | D190: Minakshi | E190: =VLOOKUP(C190,'School Fee Structure'!$B$5:$H$79,3,FALSE) -> 12000 | F190: =VLOOKUP(C190,'School Fee Structure'!$B$5:$H$79,4,FALSE) -> 5000 | G190: =VLOOKUP(C190,'School Fee Structure'!$B$5:$H$79,5,FALSE) -> 1000 | H190: =VLOOKUP(C190,'School Fee Structure'!$B$5:$H$79,6,FALSE) -> 1000 | I190: =VLOOKUP(C190,'School Fee Structure'!$B$5:$H$79,7,FALSE) -> 1000 | J190: =VLOOKUP(C190,'School Fee Structure'!$B$5:$H$79,2,FALSE) -> 20000 | K190: 20000 | L190: 0 | M190: 0 | N190: 0 | S190: 20000 | T190: 0
B191: AIS189 | C191: Nursery - D | D191: Naitik | E191: =VLOOKUP(C191,'School Fee Structure'!$B$5:$H$79,3,FALSE) -> 12000 | F191: =VLOOKUP(C191,'School Fee Structure'!$B$5:$H$79,4,FALSE) -> 5000 | G191: =VLOOKUP(C191,'School Fee Structure'!$B$5:$H$79,5,FALSE) -> 1000 | H191: =VLOOKUP(C191,'School Fee Structure'!$B$5:$H$79,6,FALSE) -> 1000 | I191: =VLOOKUP(C191,'School Fee Structure'!$B$5:$H$79,7,FALSE) -> 1000 | J191: =VLOOKUP(C191,'School Fee Structure'!$B$5:$H$79,2,FALSE) -> 20000 | K191: 10000 | L191: 0 | M191: 5000 | N191: 0 | S191: 15000 | T191: 5000
B192: AIS190 | C192: Nursery - D | D192: Owais | E192: =VLOOKUP(C192,'School Fee Structure'!$B$5:$H$79,3,FALSE) -> 12000 | F192: =VLOOKUP(C192,'School Fee Structure'!$B$5:$H$79,4,FALSE) -> 5000 | G192: =VLOOKUP(C192,'School Fee Structure'!$B$5:$H$79,5,FALSE) -> 1000 | H192: =VLOOKUP(C192,'School Fee Structure'!$B$5:$H$79,6,FALSE) -> 1000 | I192: =VLOOKUP(C192,'School Fee Structure'!$B$5:$H$79,7,FALSE) -> 1000 | J192: =VLOOKUP(C192,'School Fee Structure'!$B$5:$H$79,2,FALSE) -> 20000 | K192: 15000 | L192: 0 | M192: 0 | N192: 0 | S192: 15000 | T192: 5000
B193: AIS191 | C193: Nursery - D | D193: Pinal | E193: =VLOOKUP(C193,'School Fee Structure'!$B$5:$H$79,3,FALSE) -> 12000 | F193: =VLOOKUP(C193,'School Fee Structure'!$B$5:$H$79,4,FALSE) -> 5000 | G193: =VLOOKUP(C193,'School Fee Structure'!$B$5:$H$79,5,FALSE) -> 1000 | H193: =VLOOKUP(C193,'School Fee Structure'!$B$5:$H$79,6,FALSE) -> 1000 | I193: =VLOOKUP(C193,'School Fee Structure'!$B$5:$H$79,7,FALSE) -> 1000 | J193: =VLOOKUP(C193,'School Fee Structure'!$B$5:$H$79,2,FALSE) -> 20000 | K193: 5000 | M193: 5000 | S193: 10000 | T193: 10000
B194: AIS192 | C194: Nursery - D | D194: Qamar | E194: =VLOOKUP(C194,'School Fee Structure'!$B$5:$H$79,3,FALSE) -> 12000 | F194: =VLOOKUP(C194,'School Fee Structure'!$B$5:$H$79,4,FALSE) -> 5000 | G194: =VLOOKUP(C194,'School Fee Structure'!$B$5:$H$79,5,FALSE) -> 1000 | H194: =VLOOKUP(C194,'School Fee Structure'!$B$5:$H$79,6,FALSE) -> 1000 | I194: =VLOOKUP(C194,'School Fee Structure'!$B$5:$H$79,7,FALSE) -> 1000 | J194: =VLOOKUP(C194,'School Fee Structure'!$B$5:$H$79,2,FALSE) -> 20000 | K194: 2500 | L194: 2500 | M194: 2500 | N194: 2500 | S194: 10000 | T194: 10000
B195: AIS193 | C195: Nursery - D | D195: Rahim | E195: =VLOOKUP(C195,'School Fee Structure'!$B$5:$H$79,3,FALSE) -> 12000 | F195: =VLOOKUP(C195,'School Fee Structure'!$B$5:$H$79,4,FALSE) -> 5000 | G195: =VLOOKUP(C195,'School Fee Structure'!$B$5:$H$79,5,FALSE) -> 1000 | H195: =VLOOKUP(C195,'School Fee Structure'!$B$5:$H$79,6,FALSE) -> 1000 | I195: =VLOOKUP(C195,'School Fee Structure'!$B$5:$H$79,7,FALSE) -> 1000 | J195: =VLOOKUP(C195,'School Fee Structure'!$B$5:$H$79,2,FALSE) -> 20000 | K195: 20000 | L195: 0 | M195: 0 | N195: 0 | S195: 20000 | T195: 0
B196: AIS194 | C196: Nursery - D | D196: Sunder | E196: =VLOOKUP(C196,'School Fee Structure'!$B$5:$H$79,3,FALSE) -> 12000 | F196: =VLOOKUP(C196,'School Fee Structure'!$B$5:$H$79,4,FALSE) -> 5000 | G196: =VLOOKUP(C196,'School Fee Structure'!$B$5:$H$79,5,FALSE) -> 1000 | H196: =VLOOKUP(C196,'School Fee Structure'!$B$5:$H$79,6,FALSE) -> 1000 | I196: =VLOOKUP(C196,'School Fee Structure'!$B$5:$H$79,7,FALSE) -> 1000 | J196: =VLOOKUP(C196,'School Fee Structure'!$B$5:$H$79,2,FALSE) -> 20000 | K196: 10000 | L196: 0 | M196: 5000 | N196: 0 | S196: =SUM(K196:R196) -> 15000 | T196: =J196-S196 -> 5000
B197: AIS195 | C197: Nursery - D | D197: Tahir | E197: =VLOOKUP(C197,'School Fee Structure'!$B$5:$H$79,3,FALSE) -> 12000 | F197: =VLOOKUP(C197,'School Fee Structure'!$B$5:$H$79,4,FALSE) -> 5000 | G197: =VLOOKUP(C197,'School Fee Structure'!$B$5:$H$79,5,FALSE) -> 1000 | H197: =VLOOKUP(C197,'School Fee Structure'!$B$5:$H$79,6,FALSE) -> 1000 | I197: =VLOOKUP(C197,'School Fee Structure'!$B$5:$H$79,7,FALSE) -> 1000 | J197: =VLOOKUP(C197,'School Fee Structure'!$B$5:$H$79,2,FALSE) -> 20000 | K197: 15000 | L197: 0 | M197: 0 | N197: 0 | S197: 15000 | T197: 5000
B198: AIS196 | C198: Nursery - D | D198: Umar | E198: =VLOOKUP(C198,'School Fee Structure'!$B$5:$H$79,3,FALSE) -> 12000 | F198: =VLOOKUP(C198,'School Fee Structure'!$B$5:$H$79,4,FALSE) -> 5000 | G198: =VLOOKUP(C198,'School Fee Structure'!$B$5:$H$79,5,FALSE) -> 1000 | H198: =VLOOKUP(C198,'School Fee Structure'!$B$5:$H$79,6,FALSE) -> 1000 | I198: =VLOOKUP(C198,'School Fee Structure'!$B$5:$H$79,7,FALSE) -> 1000 | J198: =VLOOKUP(C198,'School Fee Structure'!$B$5:$H$79,2,FALSE) -> 20000 | K198: 5000 | M198: 5000 | S198: 10000 | T198: 10000
B199: AIS197 | C199: Nursery - D | D199: Vishal | E199: =VLOOKUP(C199,'School Fee Structure'!$B$5:$H$79,3,FALSE) -> 12000 | F199: =VLOOKUP(C199,'School Fee Structure'!$B$5:$H$79,4,FALSE) -> 5000 | G199: =VLOOKUP(C199,'School Fee Structure'!$B$5:$H$79,5,FALSE) -> 1000 | H199: =VLOOKUP(C199,'School Fee Structure'!$B$5:$H$79,6,FALSE) -> 1000 | I199: =VLOOKUP(C199,'School Fee Structure'!$B$5:$H$79,7,FALSE) -> 1000 | J199: =VLOOKUP(C199,'School Fee Structure'!$B$5:$H$79,2,FALSE) -> 20000 | K199: 2500 | L199: 2500 | M199: 2500 | N199: 2500 | S199: 10000 | T199: 10000
B200: AIS198 | C200: Nursery - D | D200: Wafa | E200: =VLOOKUP(C200,'School Fee Structure'!$B$5:$H$79,3,FALSE) -> 12000 | F200: =VLOOKUP(C200,'School Fee Structure'!$B$5:$H$79,4,FALSE) -> 5000 | G200: =VLOOKUP(C200,'School Fee Structure'!$B$5:$H$79,5,FALSE) -> 1000 | H200: =VLOOKUP(C200,'School Fee Structure'!$B$5:$H$79,6,FALSE) -> 1000 | I200: =VLOOKUP(C200,'School Fee Structure'!$B$5:$H$79,7,FALSE) -> 1000 | J200: =VLOOKUP(C200,'School Fee Structure'!$B$5:$H$79,2,FALSE) -> 20000 | K200: 20000 | L200: 0 | M200: 0 | N200: 0 | S200: 20000 | T200: 0
... 3553 more rows

Sheet School Fee Receipt
L2: المطلوب رجاء: حفظ نسخة من الإيصال بصيغة PDF بمسار معين مع امكانية حذف البيانات قبل بدء يوم جديد و قبل تعديل البيانات لإصدار إيصال جديد كود الحفظ في التقرير اليومي يعمل بشكل جيد لك جزيل الشكر
C4: Insert School Logo | D4: Insert School Name
D5: Insert School Address
C7: School Fee Receipt
G9: Date: | H9: =TODAY() -> 2024-05-30
C10: Student Unique ID: | E10: AIS008 | G10: Receipt No: | H10: 2022-125
C11: Studen Name: | E11: =IF(E10="","",VLOOKUP($E$10,'School Fee Collection Sheet'!$B$3:$T$3752,3,FALSE)) -> Hayden
C12: Class/Div: | E12: =IF(E10="","",VLOOKUP($E$10,'School Fee Collection Sheet'!$B$3:$T$3752,2,FALSE)) -> Nursery - A | G12: Academic Year: | H12: 2022-23
C14: Particulars | E14: Amount | G14: Fee Collection | H14: Amount | I14: Mode
C15: ='School Fee Collection Sheet'!E2 -> Tution Fees | E15: =IF(E10="","",VLOOKUP($E$10,'School Fee Collection Sheet'!$B$3:$T$3752,4,FALSE)) -> 12000 | G15: Payment 1 | H15: =IF(E10="","",VLOOKUP($E$10,'School Fee Collection Sheet'!$B$3:$T$3752,10,FALSE)) -> 20000 | I15: Cash
C16: ='School Fee Collection Sheet'!F2 -> Term Fees | E16: =IF(E10="","",VLOOKUP($E$10,'School Fee Collection Sheet'!$B$3:$T$3752,5,FALSE)) -> 5000 | G16: Payment 2 | H16: =IF(E10="","",VLOOKUP($E$10,'School Fee Collection Sheet'!$B$3:$T$3752,11,FALSE)) -> 10 | I16: Check
C17: ='School Fee Collection Sheet'!G2 -> Exam Fees | E17: =IF(E10="","",VLOOKUP($E$10,'School Fee Collection Sheet'!$B$3:$T$3752,6,FALSE)) -> 1000 | G17: Payment 3 | H17: =IF(E10="","",VLOOKUP($E$10,'School Fee Collection Sheet'!$B$3:$T$3752,12,FALSE)) -> 20 | I17: Other
C18: ='School Fee Collection Sheet'!H2 -> E-System Fees | E18: =IF(E10="","",VLOOKUP($E$10,'School Fee Collection Sheet'!$B$3:$T$3752,7,FALSE)) -> 1000 | G18: Payment 4 | H18: =IF(E10="","",VLOOKUP($E$10,'School Fee Collection Sheet'!$B$3:$T$3752,13,FALSE)) -> 30 | I18: Cash
C19: ='School Fee Collection Sheet'!I2 -> Activities Fees | E19: =IF(E10="","",VLOOKUP($E$10,'School Fee Collection Sheet'!$B$3:$T$3752,8,FALSE)) -> 1000 | G19: Payment 5 | H19: =IF(E10="","",VLOOKUP($E$10,'School Fee Collection Sheet'!$B$3:$T$3752,14,FALSE)) -> 40 | I19: Check
G20: Payment 6 | H20: =IF(E10="","",VLOOKUP($E$10,'School Fee Collection Sheet'!$B$3:$T$3752,15,FALSE)) -> 50 | I20: Other
G21: Payment 7 | H21: =IF(E10="","",VLOOKUP($E$10,'School Fee Collection Sheet'!$B$3:$T$3752,16,FALSE)) -> 60 | I21: Cash
G22: Payment 8 | H22: =IF(E10="","",VLOOKUP($E$10,'School Fee Collection Sheet'!$B$3:$T$3752,17,FALSE)) -> 70 | I22: Cash
C24: Total Fee Amount | E24: =SUM(E15:E23) -> 20000 | G24: Total Fee Received | H24: =SUM(H15:H23) -> 20280
C26: Outstanding Fees: | E26: =IF(E10="","",VLOOKUP($E$10,'School Fee Collection Sheet'!$B$3:$T$3752,19,FALSE)) -> -280 | G26: Remarks:
C29: Parent's/Guardian's Signature | H29: Clerk's Signature

Sheet School Fee Reminder (hidden)
C4: Insert School Logo | D4: Insert School Name
D5: Insert School Address
C7: School Fee Reminder Notice
G8: Date: | H8: =TODAY() -> 2024-05-30
C10: Student ID: | D10: AIS006 | E10: Student Name: | F10: =IF(D10="","",VLOOKUP($D$10,'School Fee Collection Sheet'!$B$3:$T$3752,3,FALSE)) -> Fedrick
C12: Class/Div | D12: =IF(D10="","",VLOOKUP($D$10,'School Fee Collection Sheet'!$B$3:$T$3752,2,FALSE)) -> Nursery - A | F12: Outstanding Fees: | G12: =IF(D10="","",VLOOKUP($D$10,'School Fee Collection Sheet'!$B$3:$T$3752,19,FALSE)) -> 10000
C14: Dear Parents,
C16: We hereby request you to clear the outstanding dues for the school fees. Your prompt action to this will be highly
C17: appreciated. Kindly pay the entire pending fee by | F17: =H8+7 -> 2024-06-06 | G17: to avoid inconvenience.
C19: Thank you for your continued support throughout the year.
C21: Issued By: | D21: School Managment

Sheet Daily Report
B4: Student Unique ID | C4: Class - Div | D4: Student Name | E4: date | F4: Receipt No: | G4: Payment # | H4: Amount
B6: AIS006 | C6: Nursery - A | D6: Fedrick | E6: 2024-04-21 | F6: 2022-125 | G6: Payment 3 | H6: 5000
B7: AIS007 | C7: Nursery - A | D7: Gavin | E7: 2024-04-21 | F7: 2022-125 | G7: Payment 4 | H7: 2500
B8: AIS008 | C8: Nursery - A | D8: Hayden | E8: 2024-04-21 | F8: 2022-125 | G8: Payment 1 | H8: 20000
B9: AIS008 | C9: Nursery - A | D9: Hayden | E9: 2024-04-21 | F9: 2022-125 | G9: Payment 1 | H9: 20000
B10: AIS008 | C10: Nursery - A | D10: Hayden | E10: 2024-05-30 | F10: 2022-125 | G10: Payment 8 | H10: 70
A25: المطلوب رجاءً ترحيل بيانات كل ايصال يتم اصدارة في صفحة (School Fee Receipt) الى هذا الجدول وحفظ نسخة من الإيصال بصيغة PDF
